Body,Body Name,Date,Transaction Number,Invoice Number,Amount,Supplier Name,Supplier ID ,VAT Registration Number ,Expense Area,Expense Type,Expense Code,Purchase Order
http://statistics.data.gov.uk/id/local-authority/29UP,Tonbridge & Malling Borough Council,9/1/2023,0041035857/1,41035857, 1384.61,Oh GoodLord Ltd,01914000,,Rent Deposit / Rent in Advance,Homelessness,C01AAC85844093,
http://statistics.data.gov.uk/id/local-authority/29UP,Tonbridge & Malling Borough Council,9/6/2023,0011046783/1,11046783, 12.49,REDACTED PERSONAL DATA,01189400,,Other Expenses,Mayoral & Other Member Support,D29LX000048010,
http://statistics.data.gov.uk/id/local-authority/29UP,Tonbridge & Malling Borough Council,9/6/2023,0011046830/1,11046830, 511.51,Electrosonic Ltd,00031100,,Leasing Charges,Tonbridge Castle Gatehouse,B40TG000044038,410032419
http://statistics.data.gov.uk/id/local-authority/29UP,Tonbridge & Malling Borough Council,9/6/2023,0011046830/2,11046830, 7279.80,Electrosonic Ltd,00031100,,Leasing Charges,Tonbridge Castle Gatehouse,B40TG000044038,410032419
http://statistics.data.gov.uk/id/local-authority/29UP,Tonbridge & Malling Borough Council,9/6/2023,0011046830/3,11046830, 214.06,Electrosonic Ltd,00031100,,Leasing Charges,Tonbridge Castle Gatehouse,B40TG000044038,410032419
http://statistics.data.gov.uk/id/local-authority/29UP,Tonbridge & Malling Borough Council,9/6/2023,0011046830/4,11046830, 4515.87,Electrosonic Ltd,00031100,,Leasing Charges,Tonbridge Castle Gatehouse,B40TG000044038,410032419
http://statistics.data.gov.uk/id/local-authority/29UP,Tonbridge & Malling Borough Council,9/6/2023,0011046830/5,11046830, 111.13,Electrosonic Ltd,00031100,,Leasing Charges,Tonbridge Castle Gatehouse,B40TG000044038,410032419
http://statistics.data.gov.uk/id/local-authority/29UP,Tonbridge & Malling Borough Council,9/6/2023,0011046831/1,11046831, 43525.00,G Baker Roofing Ltd,01664400,522705274,BRREP General Maintenance,Shops & Maisonettes,M15NAP10001900,110070294
http://statistics.data.gov.uk/id/local-authority/29UP,Tonbridge & Malling Borough Council,9/6/2023,0011046832/1,11046832, 638.00,Guardian Security & Fire Ltd,01899300,,BRREP Emergency light discharg,Tonbridge Swimming Pool,M15HBP30001980,110070416
http://statistics.data.gov.uk/id/local-authority/29UP,Tonbridge & Malling Borough Council,9/6/2023,0011046833/1,11046833, 2209.90,Sharpe Pritchard,00600500,,Legal Fees,Legal Sals&Overheads,D01ARDR0044002,
http://statistics.data.gov.uk/id/local-authority/29UP,Tonbridge & Malling Borough Council,9/6/2023,0011046834/1,11046834, 477.90,KH Recruitment Ltd,01738900,,Temporary Staff,Personnel Sals&Overheads,D01ABDB0311300,
http://statistics.data.gov.uk/id/local-authority/29UP,Tonbridge & Malling Borough Council,9/6/2023,0011046835/1,11046835, 1217.80,Sellick Partnership Group Limited,01336800,,Temporary Staff,Legal Sals&Overheads,D01ARDR0011300,
http://statistics.data.gov.uk/id/local-authority/29UP,Tonbridge & Malling Borough Council,9/6/2023,0011046836/1,11046836, 76.20,Sideways Media,01836200,,Information & Publicity,Information & Publicity,D32MJ000044076,
http://statistics.data.gov.uk/id/local-authority/29UP,Tonbridge & Malling Borough Council,9/6/2023,0011046837/1,11046837, 1204.40,Sellick Partnership Group Limited,01336800,,Temporary Staff,Legal Sals&Overheads,D01ARDR0011300,
http://statistics.data.gov.uk/id/local-authority/29UP,Tonbridge & Malling Borough Council,9/6/2023,0011046838/1,11046838, 51.04,Royal Mail,00086200,,Postages - Business Reply,Electoral Registration,D31MF000045003,
http://statistics.data.gov.uk/id/local-authority/29UP,Tonbridge & Malling Borough Council,9/6/2023,0011046839/1,11046839, 2506.00,Thomson Snell & Passmore,00101700,,Legal Fees,Legal Sals&Overheads,D01ARDR0044002,
http://statistics.data.gov.uk/id/local-authority/29UP,Tonbridge & Malling Borough Council,9/6/2023,0011046840/1,11046840, 164.38,Royal Mail,00086200,,Postages - Business Reply,Electoral Registration,D31MF000045003,
http://statistics.data.gov.uk/id/local-authority/29UP,Tonbridge & Malling Borough Council,9/6/2023,0011046840/2,11046840, 22.04,Royal Mail,00086200,,Purchases,Business Reply Stock Account,K14AT000001002,
http://statistics.data.gov.uk/id/local-authority/29UP,Tonbridge & Malling Borough Council,9/6/2023,0011046841/1,11046841, 7495.23,Royal Mail,00086200,,Purchases,Mailsort Stock Account,K37BR000001002,
http://statistics.data.gov.uk/id/local-authority/29UP,Tonbridge & Malling Borough Council,9/6/2023,0011046841/2,11046841, 4.98,Royal Mail,00086200,,Purchases,Mailsort Stock Account,K37BR000001002,
http://statistics.data.gov.uk/id/local-authority/29UP,Tonbridge & Malling Borough Council,9/6/2023,0011046841/3,11046841, 2.10,Royal Mail,00086200,,Purchases,Mailsort Stock Account,K37BR000001002,
http://statistics.data.gov.uk/id/local-authority/29UP,Tonbridge & Malling Borough Council,9/6/2023,0011046842/1,11046842, 16907.00,Ricoh UK Ltd,01402300,,Initial Furniture & Equipment,Capital Renewals General,P06FAGR0309906,
http://statistics.data.gov.uk/id/local-authority/29UP,Tonbridge & Malling Borough Council,9/6/2023,0011046843/1,11046843, 302.00,BML Building Services Ltd,01505000,,BRREP Window/door repairs,Tonbridge Swimming Pool,M15HBP20001919,
http://statistics.data.gov.uk/id/local-authority/29UP,Tonbridge & Malling Borough Council,9/6/2023,0011046844/1,11046844, 403.00,BML Building Services Ltd,01505000,,BRREP Window/door repairs,Larkfield Leisure Centre,M15HDP20001919,
http://statistics.data.gov.uk/id/local-authority/29UP,Tonbridge & Malling Borough Council,9/6/2023,0011046845/1,11046845, 456.00,BML Building Services Ltd,01505000,,BRREP Window/door repairs,Angel Centre,M15HAP20001919,
http://statistics.data.gov.uk/id/local-authority/29UP,Tonbridge & Malling Borough Council,9/6/2023,0011046846/1,11046846, 1670.42,The Plough,01914600,,Economic Development & Regen,Eco Dev & Reg Gen Bus Support,D52TD000047027,
http://statistics.data.gov.uk/id/local-authority/29UP,Tonbridge & Malling Borough Council,9/6/2023,0011046847/1,11046847, 2855.00,Thomson Snell & Passmore,00101700,,Legal Fees,Legal Sals&Overheads,D01ARDR0044002,
http://statistics.data.gov.uk/id/local-authority/29UP,Tonbridge & Malling Borough Council,9/6/2023,0011046848/1,11046848, 1217.80,Sellick Partnership Group Limited,01336800,,Temporary Staff,Legal Sals&Overheads,D01ARDR0011300,
http://statistics.data.gov.uk/id/local-authority/29UP,Tonbridge & Malling Borough Council,9/6/2023,0011046849/1,11046849, 843.08,Sellick Partnership Group Limited,01336800,,Temporary Staff,Legal Sals&Overheads,D01ARDR0011300,
http://statistics.data.gov.uk/id/local-authority/29UP,Tonbridge & Malling Borough Council,9/6/2023,0011046850/1,11046850, 1103.72,The Oyster Partnership,01196400,,Temporary Staff,Admin & Prop Sals&Overheads,D01AADA1111300,
http://statistics.data.gov.uk/id/local-authority/29UP,Tonbridge & Malling Borough Council,9/6/2023,0011046851/1,11046851, 384.31,Castle Water,01696500,,Estate Management Charge,Land Review,D40PS000020400,
http://statistics.data.gov.uk/id/local-authority/29UP,Tonbridge & Malling Borough Council,9/6/2023,0011046852/1,11046852, 85.00,Hadene Engineering Ltd,00041900,,BRREP Servicing - boilers,Larkfield Leisure Centre,M15HDP20001929,110070441
http://statistics.data.gov.uk/id/local-authority/29UP,Tonbridge & Malling Borough Council,9/6/2023,0011046853/1,11046853, 135.00,Hadene Engineering Ltd,00041900,,BRREP Servicing - boilers,Larkfield Leisure Centre,M15HDP20001929,110070442
http://statistics.data.gov.uk/id/local-authority/29UP,Tonbridge & Malling Borough Council,9/6/2023,0011046854/1,11046854, 5742.32,Glaze-Tech Services Ltd,00779500,,BRREP Window/door repairs,Tonbridge Swimming Pool,M15HBP20001919,110070288
http://statistics.data.gov.uk/id/local-authority/29UP,Tonbridge & Malling Borough Council,9/6/2023,0011046855/1,11046855, 680.00,Daniel Michael Services Limited,01895100,403826317,BRREP Response - General,Shops & Maisonettes,M15NAP50001997,110070383
http://statistics.data.gov.uk/id/local-authority/29UP,Tonbridge & Malling Borough Council,9/6/2023,0011046856/1,11046856, 9175.00,Daniel Michael Services Limited,01895100,403826317,BRREP Asbestos monitoring,Leis Man Poult Wood Golf Centr,M15HEP30001993,110070282
http://statistics.data.gov.uk/id/local-authority/29UP,Tonbridge & Malling Borough Council,9/6/2023,0011046857/1,11046857, 2225.00,Daniel Michael Services Limited,01895100,403826317,BRREP Asbestos monitoring,Leis Man Poult Wood Golf Centr,M15HEP30001993,110070384
http://statistics.data.gov.uk/id/local-authority/29UP,Tonbridge & Malling Borough Council,9/6/2023,0011046858/1,11046858, 580.00,JB Carpentry - J Baker,01878900,,BRREP Window/door repairs,Tonbridge Swimming Pool,M15HBP20001919,110070436
http://statistics.data.gov.uk/id/local-authority/29UP,Tonbridge & Malling Borough Council,9/6/2023,0011046859/1,11046859, 112.00,East Sussex Fire Ltd,01843100,,Repairs & Mtce to Buildings,Homelessness,C01AATNHS20101,110070238
http://statistics.data.gov.uk/id/local-authority/29UP,Tonbridge & Malling Borough Council,9/6/2023,0011046860/1,11046860, 1089.00,Learnd UK,01226700,,BRREP BMS System Mntce/Upgrade,Tonbridge Swimming Pool,M15HBP20001912,110069930
http://statistics.data.gov.uk/id/local-authority/29UP,Tonbridge & Malling Borough Council,9/6/2023,0011046861/1,11046861, 674.00,BML Building Services Ltd,01505000,,BRREP Window/door repairs,Leis Man Poult Wood Golf Centr,M15HEP20001919,110070362
http://statistics.data.gov.uk/id/local-authority/29UP,Tonbridge & Malling Borough Council,9/6/2023,0011046862/1,11046862, 150.00,BML Building Services Ltd,01505000,,BRREP Response - General,Leis Man Poult Wood Golf Centr,M15HEP50001997,110070396
http://statistics.data.gov.uk/id/local-authority/29UP,Tonbridge & Malling Borough Council,9/6/2023,0011046863/1,11046863, 764.97,Castle Water,01696500,,Water Charges (Metered),Buildings,D21FEDD6024001,
http://statistics.data.gov.uk/id/local-authority/29UP,Tonbridge & Malling Borough Council,9/6/2023,0011046864/1,11046864, 1095.49,Castle Water,01696500,,Estate Management Charge,Land Review,D40PS000020400,
http://statistics.data.gov.uk/id/local-authority/29UP,Tonbridge & Malling Borough Council,9/6/2023,0011046865/1,11046865, 295.00,GreenFish Consulting part of JCML Consul,01627700,,BRREP Display Energy Cert,Gibson Building West,M15KBP30001992,
http://statistics.data.gov.uk/id/local-authority/29UP,Tonbridge & Malling Borough Council,9/6/2023,0011046866/1,11046866, 2848.10,Royal Mail,00086200,,Purchases,Mailsort Stock Account,K37BR000001002,
http://statistics.data.gov.uk/id/local-authority/29UP,Tonbridge & Malling Borough Council,9/6/2023,0011046866/2,11046866, 4.20,Royal Mail,00086200,,Purchases,Mailsort Stock Account,K37BR000001002,
http://statistics.data.gov.uk/id/local-authority/29UP,Tonbridge & Malling Borough Council,9/6/2023,0011046866/3,11046866, 5.48,Royal Mail,00086200,,Purchases,Mailsort Stock Account,K37BR000001002,
http://statistics.data.gov.uk/id/local-authority/29UP,Tonbridge & Malling Borough Council,9/6/2023,0011046868/3,11046868, 7716.43,Royal Mail,00086200,,Purchases,Mailsort Stock Account,K37BR000001002,
http://statistics.data.gov.uk/id/local-authority/29UP,Tonbridge & Malling Borough Council,9/6/2023,0011046868/4,11046868, 6.30,Royal Mail,00086200,,Purchases,Mailsort Stock Account,K37BR000001002,
http://statistics.data.gov.uk/id/local-authority/29UP,Tonbridge & Malling Borough Council,9/6/2023,0011046868/5,11046868, 7.00,Royal Mail,00086200,,Purchases,Mailsort Stock Account,K37BR000001002,
http://statistics.data.gov.uk/id/local-authority/29UP,Tonbridge & Malling Borough Council,9/6/2023,0011046869/3,11046869, 469.94,KH Recruitment Ltd,01738900,,Temporary Staff,Personnel Sals&Overheads,D01ABDB0311300,
http://statistics.data.gov.uk/id/local-authority/29UP,Tonbridge & Malling Borough Council,9/6/2023,0012008819/10,12008819, 3.00,O2 UK Ltd,01268000,,Mobile Telephones,Chief Exec Sals&Overheads,D01ACDC0145013,
http://statistics.data.gov.uk/id/local-authority/29UP,Tonbridge & Malling Borough Council,9/6/2023,0012008819/11,12008819, 3.00,O2 UK Ltd,01268000,,Mobile Telephones,Chief Exec Sals&Overheads,D01ACDC0245013,
http://statistics.data.gov.uk/id/local-authority/29UP,Tonbridge & Malling Borough Council,9/6/2023,0012008819/12,12008819, 3.00,O2 UK Ltd,01268000,,Mobile Telephones,Technical Sals&Overheads,D01AEDE0045013,
http://statistics.data.gov.uk/id/local-authority/29UP,Tonbridge & Malling Borough Council,9/6/2023,0012008819/13,12008819, 6.00,O2 UK Ltd,01268000,,Mobile Telephones,Technical Sals&Overheads,D01AEDE0145013,
http://statistics.data.gov.uk/id/local-authority/29UP,Tonbridge & Malling Borough Council,9/6/2023,0012008819/14,12008819, 9.00,O2 UK Ltd,01268000,,Mobile Telephones,Technical Sals&Overheads,D01AEDE0245013,
http://statistics.data.gov.uk/id/local-authority/29UP,Tonbridge & Malling Borough Council,9/6/2023,0012008819/15,12008819, 42.62,O2 UK Ltd,01268000,,Mobile Telephones,Technical Sals&Overheads,D01AEDE0445013,
http://statistics.data.gov.uk/id/local-authority/29UP,Tonbridge & Malling Borough Council,9/6/2023,0012008819/16,12008819, 3.00,O2 UK Ltd,01268000,,Mobile Telephones,Technical Sals&Overheads,D01AEDE0545013,
http://statistics.data.gov.uk/id/local-authority/29UP,Tonbridge & Malling Borough Council,9/6/2023,0012008819/17,12008819, 12.00,O2 UK Ltd,01268000,,Mobile Telephones,Finance Sals&Overheads,D01AFDF0045013,
http://statistics.data.gov.uk/id/local-authority/29UP,Tonbridge & Malling Borough Council,9/6/2023,0012008819/18,12008819, 6.00,O2 UK Ltd,01268000,,Mobile Telephones,Finance Sals&Overheads,D01AFDF0945013,
http://statistics.data.gov.uk/id/local-authority/29UP,Tonbridge & Malling Borough Council,9/6/2023,0012008819/19,12008819, 12.00,O2 UK Ltd,01268000,,Mobile Telephones,St Scene & Leis Sals&Overheads,D01AGDG0045013,
http://statistics.data.gov.uk/id/local-authority/29UP,Tonbridge & Malling Borough Council,9/6/2023,0012008819/20,12008819, 12.00,O2 UK Ltd,01268000,,Mobile Telephones,St Scene & Leis Sals&Overheads,D01AGDG0145013,
http://statistics.data.gov.uk/id/local-authority/29UP,Tonbridge & Malling Borough Council,9/6/2023,0012008819/21,12008819, 9.10,O2 UK Ltd,01268000,,Mobile Telephones,St Scene & Leis Sals&Overheads,D01AGDG0445013,
http://statistics.data.gov.uk/id/local-authority/29UP,Tonbridge & Malling Borough Council,9/6/2023,0012008819/22,12008819, 36.00,O2 UK Ltd,01268000,,Mobile Telephones,St Scene & Leis Sals&Overheads,D01AGDG2045013,
http://statistics.data.gov.uk/id/local-authority/29UP,Tonbridge & Malling Borough Council,9/6/2023,0012008819/23,12008819, 9.00,O2 UK Ltd,01268000,,Mobile Telephones,Planning Sals&Overheads,D01AJDJ0045013,
http://statistics.data.gov.uk/id/local-authority/29UP,Tonbridge & Malling Borough Council,9/6/2023,0012008819/24,12008819, 12.00,O2 UK Ltd,01268000,,Mobile Telephones,Planning Sals&Overheads,D01AJDJ0245013,
http://statistics.data.gov.uk/id/local-authority/29UP,Tonbridge & Malling Borough Council,9/6/2023,0012008819/25,12008819, 6.00,O2 UK Ltd,01268000,,Mobile Telephones,Legal Sals&Overheads,D01ARDR0045013,
http://statistics.data.gov.uk/id/local-authority/29UP,Tonbridge & Malling Borough Council,9/6/2023,0012008819/26,12008819, 12.00,O2 UK Ltd,01268000,,Mobile Telephones,Legal Sals&Overheads,D01ARDR0445013,
http://statistics.data.gov.uk/id/local-authority/29UP,Tonbridge & Malling Borough Council,9/6/2023,0012008819/27,12008819, 3.00,O2 UK Ltd,01268000,,Mobile Telephones,Legal Sals&Overheads,D01ARDR0745013,
http://statistics.data.gov.uk/id/local-authority/29UP,Tonbridge & Malling Borough Council,9/6/2023,0012008819/28,12008819, 3.00,O2 UK Ltd,01268000,,Mobile Telephones,Env Hlth & Hsg Sals&Overheads,D01AVDV0045013,
http://statistics.data.gov.uk/id/local-authority/29UP,Tonbridge & Malling Borough Council,9/6/2023,0012008819/29,12008819, 9.00,O2 UK Ltd,01268000,,Mobile Telephones,Env Hlth & Hsg Sals&Overheads,D01AVDV0145013,
http://statistics.data.gov.uk/id/local-authority/29UP,Tonbridge & Malling Borough Council,9/6/2023,0012008819/30,12008819, 6.00,O2 UK Ltd,01268000,,Mobile Telephones,Env Hlth & Hsg Sals&Overheads,D01AVDV0345013,
http://statistics.data.gov.uk/id/local-authority/29UP,Tonbridge & Malling Borough Council,9/6/2023,0012008819/31,12008819, 3.00,O2 UK Ltd,01268000,,Mobile Telephones,Env Hlth & Hsg Sals&Overheads,D01AVDV0745013,
http://statistics.data.gov.uk/id/local-authority/29UP,Tonbridge & Malling Borough Council,9/6/2023,0012008819/32,12008819, 6.00,O2 UK Ltd,01268000,,Mobile Telephones,Env Hlth & Hsg Sals&Overheads,D01AVDV0945013,
http://statistics.data.gov.uk/id/local-authority/29UP,Tonbridge & Malling Borough Council,9/6/2023,0012008819/33,12008819, 9.40,O2 UK Ltd,01268000,,Mobile Telephones,Customer Services,D23CS000045013,
http://statistics.data.gov.uk/id/local-authority/29UP,Tonbridge & Malling Borough Council,9/6/2023,0012008819/34,12008819, 3.00,O2 UK Ltd,01268000,,Mobile Telephones,Tonbridge Gateway,D23TG000045013,
http://statistics.data.gov.uk/id/local-authority/29UP,Tonbridge & Malling Borough Council,9/6/2023,0012008819/35,12008819, 627.00,O2 UK Ltd,01268000,,Leased Lines & Modems,Information Technology,D27KD000045011,
http://statistics.data.gov.uk/id/local-authority/29UP,Tonbridge & Malling Borough Council,9/6/2023,0012008819/36,12008819, 3.00,O2 UK Ltd,01268000,,Mobile Telephones,Mayoral & Other Member Support,D29LX000045013,
http://statistics.data.gov.uk/id/local-authority/29UP,Tonbridge & Malling Borough Council,9/6/2023,0012008819/37,12008819, 3.00,O2 UK Ltd,01268000,,Emergency Out of Hours Recharg,Refuse Collection,H20SA000045030,
http://statistics.data.gov.uk/id/local-authority/29UP,Tonbridge & Malling Borough Council,9/6/2023,0012008819/38,12008819, 3.00,O2 UK Ltd,01268000,,Emergency Out of Hours Recharg,Street Scene,H23SD000045030,
http://statistics.data.gov.uk/id/local-authority/29UP,Tonbridge & Malling Borough Council,9/6/2023,0012008819/5,12008819, 3.00,O2 UK Ltd,01268000,,Telephones - General,Open Spaces & Amenity Areas,B22LE000045010,
http://statistics.data.gov.uk/id/local-authority/29UP,Tonbridge & Malling Borough Council,9/6/2023,0012008819/6,12008819, 3.00,O2 UK Ltd,01268000,,Mobile Telephones,Admin & Prop Sals&Overheads,D01AADA0045013,
http://statistics.data.gov.uk/id/local-authority/29UP,Tonbridge & Malling Borough Council,9/6/2023,0012008819/7,12008819, 3.00,O2 UK Ltd,01268000,,Mobile Telephones,Admin & Prop Sals&Overheads,D01AADA1045013,
http://statistics.data.gov.uk/id/local-authority/29UP,Tonbridge & Malling Borough Council,9/6/2023,0012008819/8,12008819, 9.00,O2 UK Ltd,01268000,,Mobile Telephones,Admin & Prop Sals&Overheads,D01AADA1245013,
http://statistics.data.gov.uk/id/local-authority/29UP,Tonbridge & Malling Borough Council,9/6/2023,0012008819/9,12008819, 3.00,O2 UK Ltd,01268000,,Mobile Telephones,Chief Exec Sals&Overheads,D01ACDC0045013,
http://statistics.data.gov.uk/id/local-authority/29UP,Tonbridge & Malling Borough Council,9/6/2023,0012008820/1,12008820, 59.00,Get It Repaired,01631300,287357752,Maintenance - Micros,Information Technology,D27KD000040140,410032467
http://statistics.data.gov.uk/id/local-authority/29UP,Tonbridge & Malling Borough Council,9/6/2023,0021038782/1,21038782, 65.90,WEL Medical Limited,01720700,,Purchases,Haysden Country Park,B22LC000040101,210057347
http://statistics.data.gov.uk/id/local-authority/29UP,Tonbridge & Malling Borough Council,9/6/2023,0021038783/1,21038783, 29.16,B&Q/Screwfix Direct(TradeUKAccount),00141300,,Maintenance of Grounds,Open Spaces & Amenity Areas,B22LE000020402,
http://statistics.data.gov.uk/id/local-authority/29UP,Tonbridge & Malling Borough Council,9/6/2023,0021038784/1,21038784, 49479.81,Reesink UK Ltd,00052300,,Initial Furniture & Equipment,Capital Renewals Leisure,P05KGBC0309906,210057274
http://statistics.data.gov.uk/id/local-authority/29UP,Tonbridge & Malling Borough Council,9/6/2023,0021038785/1,21038785, 1632.50,Premier Education Shirly Sports Ltd,01816200,,Partnership Fees,Leisure Planning & Policy,B37SD000044048,210057364
http://statistics.data.gov.uk/id/local-authority/29UP,Tonbridge & Malling Borough Council,9/6/2023,0021038786/1,21038786, 105.00,Nordic Products and Services Limited,01825300,,Maintenance of Grounds,Open Spaces & Amenity Areas,B22LE000020402,210057236
http://statistics.data.gov.uk/id/local-authority/29UP,Tonbridge & Malling Borough Council,9/6/2023,0021038787/1,21038787, 1000.00,M & M Developers LLP,01266500,,Maintenance of Play Equipment,Open Spaces & Amenity Areas,B22LE000020503,210057349
http://statistics.data.gov.uk/id/local-authority/29UP,Tonbridge & Malling Borough Council,9/6/2023,0021038788/1,21038788, 215.31,Pitbitz Limited T/A Gazeboshop,01712100,,Events Support,Events Development,B41TJ000044041,210057362
http://statistics.data.gov.uk/id/local-authority/29UP,Tonbridge & Malling Borough Council,9/6/2023,0021038788/2,21038788, 128.31,Pitbitz Limited T/A Gazeboshop,01712100,,Events Support,Events Development,B41TJ000044041,210057362
http://statistics.data.gov.uk/id/local-authority/29UP,Tonbridge & Malling Borough Council,9/6/2023,0021038788/3,21038788, 63.88,Pitbitz Limited T/A Gazeboshop,01712100,,Events Support,Events Development,B41TJ000044041,210057362
http://statistics.data.gov.uk/id/local-authority/29UP,Tonbridge & Malling Borough Council,9/6/2023,0021038788/4,21038788, 324.75,Pitbitz Limited T/A Gazeboshop,01712100,,Events Support,Events Development,B41TJ000044041,210057362
http://statistics.data.gov.uk/id/local-authority/29UP,Tonbridge & Malling Borough Council,9/6/2023,0021038788/5,21038788, 541.25,Pitbitz Limited T/A Gazeboshop,01712100,,Events Support,Events Development,B41TJ000044041,210057362
http://statistics.data.gov.uk/id/local-authority/29UP,Tonbridge & Malling Borough Council,9/6/2023,0021038788/6,21038788, 70.00,Pitbitz Limited T/A Gazeboshop,01712100,,Events Support,Events Development,B41TJ000044041,210057362
http://statistics.data.gov.uk/id/local-authority/29UP,Tonbridge & Malling Borough Council,9/6/2023,0021038789/1,21038789, 3298.00,EA Group (UK) Ltd,01913600,,Initial Furniture & Equipment,Capital Renewals Leisure,P05KGBC0209906,210057359
http://statistics.data.gov.uk/id/local-authority/29UP,Tonbridge & Malling Borough Council,9/6/2023,0021038790/1,21038790, 139.00,Fenland Leisure Products Ltd,01675100,,Maintenance of Play Equipment,Open Spaces & Amenity Areas,B22LE000020503,210057332
http://statistics.data.gov.uk/id/local-authority/29UP,Tonbridge & Malling Borough Council,9/6/2023,0021038791/1,21038791, 231.00,Fenland Leisure Products Ltd,01675100,,Maintenance of Play Equipment,Open Spaces & Amenity Areas,B22LE000020503,210057354
http://statistics.data.gov.uk/id/local-authority/29UP,Tonbridge & Malling Borough Council,9/6/2023,0021038792/1,21038792, 286.49,Lamberhurst Engineering Ltd,01306400,430064050,Purchases,Haysden Country Park,B22LC000040101,210057343
http://statistics.data.gov.uk/id/local-authority/29UP,Tonbridge & Malling Borough Council,9/6/2023,0021038793/1,21038793, 39.41,Kompan Ltd,01741600,382219257,Maintenance of Play Equipment,Haysden Country Park,B22LC000020503,210057348
http://statistics.data.gov.uk/id/local-authority/29UP,Tonbridge & Malling Borough Council,9/6/2023,0021038794/1,21038794, 195.60,Landscape Services Ltd,00057600,,Maintenance of Grounds,Sports Grounds,B13ET000020402,210057365
http://statistics.data.gov.uk/id/local-authority/29UP,Tonbridge & Malling Borough Council,9/6/2023,0021038795/1,21038795, 23754.66,Landscape Services Ltd,00057600,,Grounds Maintenance Contract,Sports Grounds,B13ET000050103,
http://statistics.data.gov.uk/id/local-authority/29UP,Tonbridge & Malling Borough Council,9/6/2023,0021038795/10,21038795, 190.43,Landscape Services Ltd,00057600,,Grounds Maintenance Contract,Churchyards St Stephens,B28MY000050103,
http://statistics.data.gov.uk/id/local-authority/29UP,Tonbridge & Malling Borough Council,9/6/2023,0021038795/11,21038795, 191.95,Landscape Services Ltd,00057600,,Grounds Maintenance Contract,Grounds,D21FF000050103,
http://statistics.data.gov.uk/id/local-authority/29UP,Tonbridge & Malling Borough Council,9/6/2023,0021038795/12,21038795, 364.05,Landscape Services Ltd,00057600,,Maintenance of Grounds,Parking Off-Street,E10HA000020402,
http://statistics.data.gov.uk/id/local-authority/29UP,Tonbridge & Malling Borough Council,9/6/2023,0021038795/13,21038795, 1148.71,Landscape Services Ltd,00057600,,Maintenance of Grounds,Parking Off-Street,E10HAE00120402,
http://statistics.data.gov.uk/id/local-authority/29UP,Tonbridge & Malling Borough Council,9/6/2023,0021038795/14,21038795, 108.41,Landscape Services Ltd,00057600,,Maintenance of Grounds,Parking Off-Street,E10HAE00220402,
http://statistics.data.gov.uk/id/local-authority/29UP,Tonbridge & Malling Borough Council,9/6/2023,0021038795/15,21038795, 98.31,Landscape Services Ltd,00057600,,Maintenance of Grounds,Parking Off-Street,E10HAE00320402,
http://statistics.data.gov.uk/id/local-authority/29UP,Tonbridge & Malling Borough Council,9/6/2023,0021038795/16,21038795, 24.52,Landscape Services Ltd,00057600,,Maintenance of Grounds,Parking Off-Street,E10HAE00420402,
http://statistics.data.gov.uk/id/local-authority/29UP,Tonbridge & Malling Borough Council,9/6/2023,0021038795/17,21038795, 0.63,Landscape Services Ltd,00057600,,Maintenance of Grounds,Parking Off-Street,E10HAE00520402,
http://statistics.data.gov.uk/id/local-authority/29UP,Tonbridge & Malling Borough Council,9/6/2023,0021038795/18,21038795, 68.63,Landscape Services Ltd,00057600,,Maintenance of Grounds,Parking Off-Street,E10HAE00620402,
http://statistics.data.gov.uk/id/local-authority/29UP,Tonbridge & Malling Borough Council,9/6/2023,0021038795/19,21038795, 160.24,Landscape Services Ltd,00057600,,Maintenance of Grounds,Parking Off-Street,E10HAE01020402,
http://statistics.data.gov.uk/id/local-authority/29UP,Tonbridge & Malling Borough Council,9/6/2023,0021038795/2,21038795, 8238.89,Landscape Services Ltd,00057600,,Grounds Maintenance Contract,Tonbridge Castle Grounds,B22LB000050103,
http://statistics.data.gov.uk/id/local-authority/29UP,Tonbridge & Malling Borough Council,9/6/2023,0021038795/20,21038795, 3.55,Landscape Services Ltd,00057600,,Maintenance of Grounds,Parking Off-Street,E10HAE01220402,
http://statistics.data.gov.uk/id/local-authority/29UP,Tonbridge & Malling Borough Council,9/6/2023,0021038795/21,21038795, 7.83,Landscape Services Ltd,00057600,,Maintenance of Grounds,Parking Off-Street,E10HAE01320402,
http://statistics.data.gov.uk/id/local-authority/29UP,Tonbridge & Malling Borough Council,9/6/2023,0021038795/22,21038795, 32.60,Landscape Services Ltd,00057600,,Maintenance of Grounds,Parking Off-Street,E10HAE01520402,
http://statistics.data.gov.uk/id/local-authority/29UP,Tonbridge & Malling Borough Council,9/6/2023,0021038795/23,21038795, 63.69,Landscape Services Ltd,00057600,,Maintenance of Grounds,Parking Off-Street,E10HAE01620402,
http://statistics.data.gov.uk/id/local-authority/29UP,Tonbridge & Malling Borough Council,9/6/2023,0021038795/24,21038795, 25.88,Landscape Services Ltd,00057600,,Maintenance of Grounds,Parking Off-Street,E10HAE01720402,
http://statistics.data.gov.uk/id/local-authority/29UP,Tonbridge & Malling Borough Council,9/6/2023,0021038795/25,21038795, 15.90,Landscape Services Ltd,00057600,,Maintenance of Grounds,Parking Off-Street,E10HAE02120402,
http://statistics.data.gov.uk/id/local-authority/29UP,Tonbridge & Malling Borough Council,9/6/2023,0021038795/26,21038795, 25.32,Landscape Services Ltd,00057600,,Maintenance of Grounds,Parking Off-Street,E10HAE02320402,
http://statistics.data.gov.uk/id/local-authority/29UP,Tonbridge & Malling Borough Council,9/6/2023,0021038795/27,21038795, 97.05,Landscape Services Ltd,00057600,,Maintenance of Grounds,Parking Off-Street,E10HAE02820402,
http://statistics.data.gov.uk/id/local-authority/29UP,Tonbridge & Malling Borough Council,9/6/2023,0021038795/28,21038795, 26.28,Landscape Services Ltd,00057600,,Maintenance of Grounds,Parking Off-Street,E10HAE04020402,
http://statistics.data.gov.uk/id/local-authority/29UP,Tonbridge & Malling Borough Council,9/6/2023,0021038795/29,21038795, 86.65,Landscape Services Ltd,00057600,,Maintenance of Grounds,Parking Off-Street,E10HAE04520402,
http://statistics.data.gov.uk/id/local-authority/29UP,Tonbridge & Malling Borough Council,9/6/2023,0021038795/3,21038795, 62.73,Landscape Services Ltd,00057600,,Trade Refuse Charges,Haysden Country Park,B22LC000044008,
http://statistics.data.gov.uk/id/local-authority/29UP,Tonbridge & Malling Borough Council,9/6/2023,0021038795/4,21038795, 538.16,Landscape Services Ltd,00057600,,Litter Collection,Haysden Country Park,B22LC000044061,
http://statistics.data.gov.uk/id/local-authority/29UP,Tonbridge & Malling Borough Council,9/6/2023,0021038795/5,21038795, 1849.86,Landscape Services Ltd,00057600,,Grounds Maintenance Contract,Haysden Country Park,B22LC000050103,
http://statistics.data.gov.uk/id/local-authority/29UP,Tonbridge & Malling Borough Council,9/6/2023,0021038795/6,21038795, 645.29,Landscape Services Ltd,00057600,,Grounds Maintenance Contract,Haysden Country Park,B22LC000050103,
http://statistics.data.gov.uk/id/local-authority/29UP,Tonbridge & Malling Borough Council,9/6/2023,0021038795/7,21038795, 14164.79,Landscape Services Ltd,00057600,,Grounds Maintenance Contract,Open Spaces & Amenity Areas,B22LE000050103,
http://statistics.data.gov.uk/id/local-authority/29UP,Tonbridge & Malling Borough Council,9/6/2023,0021038795/8,21038795, 5103.55,Landscape Services Ltd,00057600,,Grounds Maintenance Contract,Cemetery,B26MP000050103,
http://statistics.data.gov.uk/id/local-authority/29UP,Tonbridge & Malling Borough Council,9/6/2023,0021038795/9,21038795, 256.67,Landscape Services Ltd,00057600,,Grounds Maintenance Contract,Churchyards St Peter & St Paul,B28MX000050103,
http://statistics.data.gov.uk/id/local-authority/29UP,Tonbridge & Malling Borough Council,9/6/2023,0021038797/1,21038797, 6431.00,Cemetery Development Services,01106400,,Contract Payments,Ton Cemetery Memorial Safety,P05KV000009904,210057321
http://statistics.data.gov.uk/id/local-authority/29UP,Tonbridge & Malling Borough Council,9/6/2023,0021038798/1,21038798, 74.71,G.L. & R.G. Bourne,00737500,,Gates / Security,Haysden Country Park,B22LC000044017,210057185
http://statistics.data.gov.uk/id/local-authority/29UP,Tonbridge & Malling Borough Council,9/6/2023,0021038799/1,21038799, 40.00,G.L. & R.G. Bourne,00737500,,Maintenance of Grounds,Haysden Country Park,B22LC000020402,210057185
http://statistics.data.gov.uk/id/local-authority/29UP,Tonbridge & Malling Borough Council,9/6/2023,0021038800/1,21038800, 544.98,G.L. & R.G. Bourne,00737500,,Gates / Security,Haysden Country Park,B22LC000044017,210057185
http://statistics.data.gov.uk/id/local-authority/29UP,Tonbridge & Malling Borough Council,9/6/2023,0021038801/1,21038801, 2520.00,Advantage Catering Equipment Ltd,01912700,131043471,Initial Furniture & Equipment,Capital Renewals Leisure,P05KGBC0409906,220003385
http://statistics.data.gov.uk/id/local-authority/29UP,Tonbridge & Malling Borough Council,9/6/2023,0021038801/2,21038801, 120.00,Advantage Catering Equipment Ltd,01912700,131043471,Initial Furniture & Equipment,Capital Renewals Leisure,P05KGBC0409906,220003385
http://statistics.data.gov.uk/id/local-authority/29UP,Tonbridge & Malling Borough Council,9/6/2023,0022028045/1,22028045, 5820.75,YMCA Thames Gateway Group,01887700,,Professional Fees,Homelessness,C01AATNPR44001,
http://statistics.data.gov.uk/id/local-authority/29UP,Tonbridge & Malling Borough Council,9/6/2023,0022028046/1,22028046, 375.00,WRM Property Services,01878100,,Homelessness Reduction Initiat,Homelessness,C01AA000048019,
http://statistics.data.gov.uk/id/local-authority/29UP,Tonbridge & Malling Borough Council,9/6/2023,0022028047/1,22028047, 250.00,WRM Property Services,01878100,,Homelessness Reduction Initiat,Homelessness,C01AA000048019,
http://statistics.data.gov.uk/id/local-authority/29UP,Tonbridge & Malling Borough Council,9/6/2023,0022028048/1,22028048, 15557.43,Urbaser LTD,01718800,,Contract Payments,Refuse Collection,H20SA000054001,
http://statistics.data.gov.uk/id/local-authority/29UP,Tonbridge & Malling Borough Council,9/6/2023,0022028048/2,22028048, 5297.97,Urbaser LTD,01718800,,Contract Payments,Street Scene,H23SD000054001,
http://statistics.data.gov.uk/id/local-authority/29UP,Tonbridge & Malling Borough Council,9/6/2023,0022028048/3,22028048, 527.43,Urbaser LTD,01718800,,Contract Payments,Dry Recycling,H34SR000054001,
http://statistics.data.gov.uk/id/local-authority/29UP,Tonbridge & Malling Borough Council,9/6/2023,0022028048/4,22028048, 14527.58,Urbaser LTD,01718800,,Contract Payments,Garden Waste Recycling,H34ST000054001,
http://statistics.data.gov.uk/id/local-authority/29UP,Tonbridge & Malling Borough Council,9/6/2023,0022028049/1,22028049, 535.06,South East Water Ltd,00572200,,Water Charges (Metered),Homelessness,C01AAMAUN24001,
http://statistics.data.gov.uk/id/local-authority/29UP,Tonbridge & Malling Borough Council,9/6/2023,0022028050/3,22028050, 4801.69,Ward Security LTD,01490000,,Dog Warden,Street Scene,H23SD000044100,
http://statistics.data.gov.uk/id/local-authority/29UP,Tonbridge & Malling Borough Council,9/6/2023,0022028051/3,22028051, 3827.00,Specialist Hygiene Services,01466100,,Cleaning & Domestic Supplies,Haysden Country Park,B22LC000026001,
http://statistics.data.gov.uk/id/local-authority/29UP,Tonbridge & Malling Borough Council,9/6/2023,0022028051/4,22028051, 5002.55,Specialist Hygiene Services,01466100,,Contract Payments,Public Conveniences,H22SC000054001,
http://statistics.data.gov.uk/id/local-authority/29UP,Tonbridge & Malling Borough Council,9/6/2023,0022028053/1,22028053, 18.27,Maidstone Borough Council,01173700,,Council Tax,Homelessness,C01AA000023002,
http://statistics.data.gov.uk/id/local-authority/29UP,Tonbridge & Malling Borough Council,9/6/2023,0022028054/1,22028054, 63.94,Maidstone Borough Council,01173700,,Council Tax,Homelessness,C01AA000023002,
http://statistics.data.gov.uk/id/local-authority/29UP,Tonbridge & Malling Borough Council,9/6/2023,0022028055/1,22028055, 650.00,Kent Accommodation Ltd,01722000,,Professional Fees,Homelessness,C01AA000044001,
http://statistics.data.gov.uk/id/local-authority/29UP,Tonbridge & Malling Borough Council,9/6/2023,0022028056/1,22028056, 350.00,Kent Accommodation Ltd,01722000,,Professional Fees,Homelessness,C01AA000044001,
http://statistics.data.gov.uk/id/local-authority/29UP,Tonbridge & Malling Borough Council,9/6/2023,0022028057/1,22028057, 300.00,Kent Accommodation Ltd,01722000,,Professional Fees,Homelessness,C01AA000044001,
http://statistics.data.gov.uk/id/local-authority/29UP,Tonbridge & Malling Borough Council,9/6/2023,0022028058/1,22028058, 275.00,Kent Accommodation Ltd,01722000,,Professional Fees,Homelessness,C01AA000044001,
http://statistics.data.gov.uk/id/local-authority/29UP,Tonbridge & Malling Borough Council,9/6/2023,0022028059/1,22028059, 520.00,Kent Accommodation Ltd,01722000,,Professional Fees,Homelessness,C01AA000044001,
http://statistics.data.gov.uk/id/local-authority/29UP,Tonbridge & Malling Borough Council,9/6/2023,0022028060/1,22028060, 325.00,Kent Accommodation Ltd,01722000,,Professional Fees,Homelessness,C01AA000044001,
http://statistics.data.gov.uk/id/local-authority/29UP,Tonbridge & Malling Borough Council,9/6/2023,0022028061/1,22028061, 357.00,Kent Accommodation Ltd,01722000,,Professional Fees,Homelessness,C01AA000044001,
http://statistics.data.gov.uk/id/local-authority/29UP,Tonbridge & Malling Borough Council,9/6/2023,0022028062/3,22028062, 245.00,Countrystyle Group,00835900,781981681,Collection of Card,Dry Recycling,H34SR000054008,
http://statistics.data.gov.uk/id/local-authority/29UP,Tonbridge & Malling Borough Council,9/6/2023,0022028063/3,22028063, 4645.60,Countrystyle Group,00835900,781981681,Plastic Recycling,Dry Recycling,H34SR000054019,
http://statistics.data.gov.uk/id/local-authority/29UP,Tonbridge & Malling Borough Council,9/6/2023,0022028064/3,22028064, 980.00,Countrystyle Group,00835900,781981681,Collection of Card,Dry Recycling,H34SR000054008,
http://statistics.data.gov.uk/id/local-authority/29UP,Tonbridge & Malling Borough Council,9/6/2023,0022028065/1,22028065, 2800.00,Counterweight LTD,01506600,,Healthy Living Initiatives,Public Health - Healthy Living,H40SY000048145,
http://statistics.data.gov.uk/id/local-authority/29UP,Tonbridge & Malling Borough Council,9/6/2023,0022028066/1,22028066, 965.00,Town & Country Housing Group,01385400,,Countywide DFG Project,Private Sector Housing Renewal,C03BD000044031,
http://statistics.data.gov.uk/id/local-authority/29UP,Tonbridge & Malling Borough Council,9/6/2023,0022028067/1,22028067, 2.17,REDACTED PERSONAL DATA,01773200,,Repairs & Mtce to Buildings,Homelessness,C01AA000020101,
http://statistics.data.gov.uk/id/local-authority/29UP,Tonbridge & Malling Borough Council,9/6/2023,0022028068/1,22028068, 400.00,Green Recycling LTD,01563000,,Paper Recycling,Dry Recycling,H34SR000054024,
http://statistics.data.gov.uk/id/local-authority/29UP,Tonbridge & Malling Borough Council,9/6/2023,0022028069/1,22028069, 369.00,CATG Limited,01913700,,Water Sampling,Environmental Protection,H32SN000054010,
http://statistics.data.gov.uk/id/local-authority/29UP,Tonbridge & Malling Borough Council,9/6/2023,0022028070/1,22028070, 23128.17,Consultants in Care Ltd,01764200,,Temporary Accommodation,Homelessness,C01AAMAUN44051,
http://statistics.data.gov.uk/id/local-authority/29UP,Tonbridge & Malling Borough Council,9/6/2023,0022028071/1,22028071, 355.00,Acoustic Calibration Services Ltd,00775900,,Air Quality Monitoring,Environmental Protection,H32SN000054016,220003372
http://statistics.data.gov.uk/id/local-authority/29UP,Tonbridge & Malling Borough Council,9/6/2023,0022028072/1,22028072, 6904.37,Alfa Electrical LTD Inc AVCO Maintenance,01642200,,Other Expenses,Disabled Facilities Grant Mand,P03AC000009908,
http://statistics.data.gov.uk/id/local-authority/29UP,Tonbridge & Malling Borough Council,9/6/2023,0022028073/1,22028073, 16000.00,Dolphin Stairlifts,00698900,,Other Expenses,Disabled Facilities Grant Mand,P03AC000009908,
http://statistics.data.gov.uk/id/local-authority/29UP,Tonbridge & Malling Borough Council,9/6/2023,0022028074/1,22028074, 90.00,Britains Limited,01743900,,Repairs & Mtce to Buildings,Homelessness,C01AATNHS20101,
http://statistics.data.gov.uk/id/local-authority/29UP,Tonbridge & Malling Borough Council,9/6/2023,0031019679/3,31019679, 82.61,Shell U.K. Oil Products Limited,01673300,,"Petrol, Diesel & Oil",Parking Off-Street,E10HA000030106,
http://statistics.data.gov.uk/id/local-authority/29UP,Tonbridge & Malling Borough Council,9/6/2023,0031019679/4,31019679, 82.60,Shell U.K. Oil Products Limited,01673300,,"Petrol, Diesel & Oil",Parking On-Street,E10HD000030106,
http://statistics.data.gov.uk/id/local-authority/29UP,Tonbridge & Malling Borough Council,9/6/2023,0031019682/3,31019682, 1180.00,Marston,01485000,,Adjudication & Enforcement Ser,Parking Off-Street,E10HA000044230,
http://statistics.data.gov.uk/id/local-authority/29UP,Tonbridge & Malling Borough Council,9/6/2023,0031019683/1,31019683, 2911.00,SKF Contractors Ltd,00092000,621768141,Other Expenses,Car Park Imp Rolling Programme,P01AB000009908,310043095
http://statistics.data.gov.uk/id/local-authority/29UP,Tonbridge & Malling Borough Council,9/6/2023,0031019684/1,31019684, 10880.00,Flowbird Smart City UK Limited,00898700,,Maintenance - General,Parking Off-Street,E10HA000040135,210057355
http://statistics.data.gov.uk/id/local-authority/29UP,Tonbridge & Malling Borough Council,9/6/2023,0031019684/2,31019684, 2560.00,Flowbird Smart City UK Limited,00898700,,Maintenance - General,Parking On-Street,E10HD000040135,210057355
http://statistics.data.gov.uk/id/local-authority/29UP,Tonbridge & Malling Borough Council,9/6/2023,0031019687/1,31019687, 101.00,RAC Motoring Services,01815300,,Transport Insurance,Patrolling,B22LF000035001,
http://statistics.data.gov.uk/id/local-authority/29UP,Tonbridge & Malling Borough Council,9/6/2023,0031019687/2,31019687, 202.00,RAC Motoring Services,01815300,,Transport Insurance,Parking Off-Street,E10HA000035001,
http://statistics.data.gov.uk/id/local-authority/29UP,Tonbridge & Malling Borough Council,9/6/2023,0031019687/3,31019687, 303.00,RAC Motoring Services,01815300,,Transport Insurance,Parking On-Street,E10HD000035001,
http://statistics.data.gov.uk/id/local-authority/29UP,Tonbridge & Malling Borough Council,9/6/2023,0031019689/1,31019689, 105000.00, Connected Kerb Limited,01851400,293064300,Contract Payments,Electric Veh Charging Points,P01EA000009904,
http://statistics.data.gov.uk/id/local-authority/29UP,Tonbridge & Malling Borough Council,9/6/2023,0032010421/1,32010421, 160.65,KM Media Group Ltd,00053900,,Advertising General,Development Management,A01ABZ99944216,320003540
http://statistics.data.gov.uk/id/local-authority/29UP,Tonbridge & Malling Borough Council,9/6/2023,0032010422/1,32010422, 25.99,KCS Education/CSG Global Education Ltd,01897200,408845925,Stationery,Planning Sals&Overheads,D01AJDJ0143003,320003542
http://statistics.data.gov.uk/id/local-authority/29UP,Tonbridge & Malling Borough Council,9/6/2023,0032010423/1,32010423, 2479.50,Vivid Resourcing,01773700,,Temporary Staff,Planning Sals&Overheads,D01AJDJ0111300,
http://statistics.data.gov.uk/id/local-authority/29UP,Tonbridge & Malling Borough Council,9/6/2023,0032010424/1,32010424, 1250.00,Tunbridge Wells Borough Council,00844600,,Conservation,Conservation,A01AG000056002,
http://statistics.data.gov.uk/id/local-authority/29UP,Tonbridge & Malling Borough Council,9/6/2023,0032010425/1,32010425, 930.00,Quality Bailiffs,01835600,,Professional Fees,Development Management,A01ABENFO44001,
http://statistics.data.gov.uk/id/local-authority/29UP,Tonbridge & Malling Borough Council,9/6/2023,0032010426/1,32010426, 1659.00,The Oyster Partnership,01196400,,Temporary Staff,Planning Sals&Overheads,D01AJDJ0111300,
http://statistics.data.gov.uk/id/local-authority/29UP,Tonbridge & Malling Borough Council,9/6/2023,0032010427/1,32010427, 103673.14,KWT Consultancy Services,01845300,974842378,Payments,S106 - Commuted Sums,M04AD000001001,
http://statistics.data.gov.uk/id/local-authority/29UP,Tonbridge & Malling Borough Council,9/6/2023,0032010428/1,32010428, 2211.00,Hays Specialist Recruitment Limited,01879200,773695871,Temporary Staff,Planning Sals&Overheads,D01AJDJ0111300,
http://statistics.data.gov.uk/id/local-authority/29UP,Tonbridge & Malling Borough Council,9/6/2023,0032010429/1,32010429, 237.76,Hays Specialist Recruitment Limited,01879200,773695871,Temporary Staff,Planning Sals&Overheads,D01AJDJ0311300,
http://statistics.data.gov.uk/id/local-authority/29UP,Tonbridge & Malling Borough Council,9/6/2023,0032010430/1,32010430, 2250.00,G2 Recruitment Solutions,01786000,,Temporary Staff,Planning Sals&Overheads,D01AJDJ0011300,
http://statistics.data.gov.uk/id/local-authority/29UP,Tonbridge & Malling Borough Council,9/6/2023,0032010431/1,32010431, 100.00,Environment Agency,00418100,,Development of Local Plan,Development of Local Plan,A01AE000044023,320003400
http://statistics.data.gov.uk/id/local-authority/29UP,Tonbridge & Malling Borough Council,9/6/2023,0032010432/1,32010432, 1175.00,Carrington West Limited,01844500,,Temporary Staff,Planning Sals&Overheads,D01AJDJ0111300,
http://statistics.data.gov.uk/id/local-authority/29UP,Tonbridge & Malling Borough Council,9/6/2023,0041035824/1,41035824, 1345.00,L A Directories Ltd,01689700,,Subscriptions,Finance Sals&Overheads,D01AFDF1147002,410032466
http://statistics.data.gov.uk/id/local-authority/29UP,Tonbridge & Malling Borough Council,9/6/2023,0041035825/1,41035825, 905.82,Morgan Hunt UK Ltd,01086900,,Temporary Staff,Finance Sals&Overheads,D01AFDF1111300,
http://statistics.data.gov.uk/id/local-authority/29UP,Tonbridge & Malling Borough Council,9/6/2023,0041035826/1,41035826, 20.00,Computershare Voucher Services,01212600,,Childcare Scheme,Finance Sals&Overheads,D01AFDF0911136,
http://statistics.data.gov.uk/id/local-authority/29UP,Tonbridge & Malling Borough Council,9/6/2023,0041035826/2,41035826, 1.40,Computershare Voucher Services,01212600,,National Insurance,Finance Sals&Overheads,D01AFDF0911191,
http://statistics.data.gov.uk/id/local-authority/29UP,Tonbridge & Malling Borough Council,9/6/2023,0041035826/3,41035826, 20.00,Computershare Voucher Services,01212600,,Childcare Scheme,Env Hlth & Hsg Sals&Overheads,D01AVDV0211136,
http://statistics.data.gov.uk/id/local-authority/29UP,Tonbridge & Malling Borough Council,9/6/2023,0041035826/4,41035826, 1.40,Computershare Voucher Services,01212600,,National Insurance,Env Hlth & Hsg Sals&Overheads,D01AVDV0211191,
http://statistics.data.gov.uk/id/local-authority/29UP,Tonbridge & Malling Borough Council,9/6/2023,0041035827/1,41035827, 1586.76,Rundle & Co Ltd,00087200,,Bailiffs Commission,Local Revenue & NNDR Collect,D41QA000044075,
http://statistics.data.gov.uk/id/local-authority/29UP,Tonbridge & Malling Borough Council,9/6/2023,0041035859/3,41035859, 158.39,Dun & Bradstreet Limited,01118900,,Contract Services,Finance Sals&Overheads,D01AFDF0244005,
http://statistics.data.gov.uk/id/local-authority/29UP,Tonbridge & Malling Borough Council,9/6/2023,0041035860/1,41035860, 11.60,Tameside Metropolitan Borough,00770200,,Other Expenses,Finance Sals&Overheads,D01AFDF0648010,410032458
http://statistics.data.gov.uk/id/local-authority/29UP,Tonbridge & Malling Borough Council,9/6/2023,0041035860/2,41035860, 17.50,Tameside Metropolitan Borough,00770200,,Other Expenses,Finance Sals&Overheads,D01AFDF0648010,410032458
http://statistics.data.gov.uk/id/local-authority/29UP,Tonbridge & Malling Borough Council,9/6/2023,0041035861/1,41035861, 107.52,Adelante Software Limited,01393800,812115871,Credit Card Commission,Banking Arrangements,D43QK000044082,
http://statistics.data.gov.uk/id/local-authority/29UP,Tonbridge & Malling Borough Council,9/6/2023,0051008829/1,51008829, 960.00,L A Directories Ltd,01689700,,Ext Fees/Prof & Tech,Training,D10DCDF1113561,510010633
http://statistics.data.gov.uk/id/local-authority/29UP,Tonbridge & Malling Borough Council,9/6/2023,0051008840/1,51008840, 100.00,St John Ambulance Supplies,01228000,564553916,Ext Fees/Health & Safety,Training,D10DCDG0013566,510010645
http://statistics.data.gov.uk/id/local-authority/29UP,Tonbridge & Malling Borough Council,9/6/2023,0051008841/1,51008841, 7.50,Commercial Services Kent Ltd,01655800,,Criminal Records Bureau Checks,Recruitment Expenses,D10DA000013180,510010643
http://statistics.data.gov.uk/id/local-authority/29UP,Tonbridge & Malling Borough Council,9/6/2023,0051008841/2,51008841, 18.00,Commercial Services Kent Ltd,01655800,,Criminal Records Bureau Checks,Recruitment Expenses,D10DA000013180,510010643
http://statistics.data.gov.uk/id/local-authority/29UP,Tonbridge & Malling Borough Council,9/6/2023,0051008842/1,51008842, 399.00,Hiring People (Ptnrs of Research Ltd),01876600,161643812,Recruitment Advertising,Recruitment Expenses,D10DADB0013110,510010647
http://statistics.data.gov.uk/id/local-authority/29UP,Tonbridge & Malling Borough Council,9/8/2023,0041035867/10,41035867, 2.94,National Westminster Bank Plc,00894500,,Ext Fees/Prof & Tech,Training,D10DCDB0213561,
http://statistics.data.gov.uk/id/local-authority/29UP,Tonbridge & Malling Borough Council,9/8/2023,0041035867/11,41035867, 122.97,National Westminster Bank Plc,00894500,,Castle Catering Provisions,Ton Castle Council Chamber,D21FC000041015,
http://statistics.data.gov.uk/id/local-authority/29UP,Tonbridge & Malling Borough Council,9/8/2023,0041035867/12,41035867, 114.49,National Westminster Bank Plc,00894500,,Castle Catering Provisions,Ton Castle Council Chamber,D21FC000041015,
http://statistics.data.gov.uk/id/local-authority/29UP,Tonbridge & Malling Borough Council,9/8/2023,0041035867/13,41035867, 73.64,National Westminster Bank Plc,00894500,,Castle Catering Provisions,Ton Castle Council Chamber,D21FC000041015,
http://statistics.data.gov.uk/id/local-authority/29UP,Tonbridge & Malling Borough Council,9/8/2023,0041035867/14,41035867, 1.42,National Westminster Bank Plc,00894500,,Purchases,Information Technology,D27KD000040101,
http://statistics.data.gov.uk/id/local-authority/29UP,Tonbridge & Malling Borough Council,9/8/2023,0041035867/15,41035867, 17.40,National Westminster Bank Plc,00894500,,Software Hire & Support,Information Technology,D27KD000044059,
http://statistics.data.gov.uk/id/local-authority/29UP,Tonbridge & Malling Borough Council,9/8/2023,0041035867/16,41035867, 18.19,National Westminster Bank Plc,00894500,,Software Hire & Support,Information Technology,D27KD000044059,
http://statistics.data.gov.uk/id/local-authority/29UP,Tonbridge & Malling Borough Council,9/8/2023,0041035867/17,41035867, 14.45,National Westminster Bank Plc,00894500,,Delivery Expenses,Information Technology,D27KD000044069,
http://statistics.data.gov.uk/id/local-authority/29UP,Tonbridge & Malling Borough Council,9/8/2023,0041035867/18,41035867, 59.29,National Westminster Bank Plc,00894500,,Delivery Expenses,Information Technology,D27KD000044069,
http://statistics.data.gov.uk/id/local-authority/29UP,Tonbridge & Malling Borough Council,9/8/2023,0041035867/19,41035867, 49.00,National Westminster Bank Plc,00894500,,Information & Publicity,Information & Publicity,D32MJ000044076,
http://statistics.data.gov.uk/id/local-authority/29UP,Tonbridge & Malling Borough Council,9/8/2023,0041035867/20,41035867, 219.75,National Westminster Bank Plc,00894500,,Information & Publicity,Information & Publicity,D32MJ000044076,
http://statistics.data.gov.uk/id/local-authority/29UP,Tonbridge & Malling Borough Council,9/8/2023,0041035867/21,41035867, 53.04,National Westminster Bank Plc,00894500,,Information & Publicity,Information & Publicity,D32MJ000044076,
http://statistics.data.gov.uk/id/local-authority/29UP,Tonbridge & Malling Borough Council,9/8/2023,0041035867/22,41035867, 21.69,National Westminster Bank Plc,00894500,,Other Expenses,Food & Safety - Food Safety,H35SX000048010,
http://statistics.data.gov.uk/id/local-authority/29UP,Tonbridge & Malling Borough Council,9/8/2023,0041035867/23,41035867, 17.08,National Westminster Bank Plc,00894500,,Sales,TIC Stock Account,K18AX000002002,
http://statistics.data.gov.uk/id/local-authority/29UP,Tonbridge & Malling Borough Council,9/8/2023,0041035867/24,41035867, 42.58,National Westminster Bank Plc,00894500,,Sales,TIC Stock Account,K18AX000002002,
http://statistics.data.gov.uk/id/local-authority/29UP,Tonbridge & Malling Borough Council,9/8/2023,0041035867/25,41035867, 74.86,National Westminster Bank Plc,00894500,,Sales,TIC Stock Account,K18AX000002002,
http://statistics.data.gov.uk/id/local-authority/29UP,Tonbridge & Malling Borough Council,9/8/2023,0041035867/26,41035867, 110.50,National Westminster Bank Plc,00894500,,Sales,TIC Stock Account,K18AX000002002,
http://statistics.data.gov.uk/id/local-authority/29UP,Tonbridge & Malling Borough Council,9/8/2023,0041035867/8,41035867, 269.10,National Westminster Bank Plc,00894500,,Ext Fees/Prof & Tech,Training,D10DCDB0213561,
http://statistics.data.gov.uk/id/local-authority/29UP,Tonbridge & Malling Borough Council,9/8/2023,0041035867/9,41035867, 85.50,National Westminster Bank Plc,00894500,,Ext Fees/Prof & Tech,Training,D10DCDB0213561,
http://statistics.data.gov.uk/id/local-authority/29UP,Tonbridge & Malling Borough Council,9/8/2023,0041035870/1,41035870, 5563.70,Netmail EMEA GmbH,01582300,,Software Hire & Support,Information Technology,D27KD000044059,
http://statistics.data.gov.uk/id/local-authority/29UP,Tonbridge & Malling Borough Council,9/13/2023,0011046873/1,11046873, 482.00,Pillory Barn Design Studios,01898100,619155927,Marketing,Information & Publicity,D32MJ000044215,110070196
http://statistics.data.gov.uk/id/local-authority/29UP,Tonbridge & Malling Borough Council,9/13/2023,0011046874/1,11046874, 23.37,Oasis Group  - Box-It South East,00966800,931579211,Purchases,Electoral Registration,D31MF000040101,
http://statistics.data.gov.uk/id/local-authority/29UP,Tonbridge & Malling Borough Council,9/13/2023,0011046875/1,11046875, 1242.50,Encore Envelopes Ltd,01750600,,Stationery,Electoral Registration,D31MF000043003,
http://statistics.data.gov.uk/id/local-authority/29UP,Tonbridge & Malling Borough Council,9/13/2023,0011046876/1,11046876, 275.00,SWEET SENSTATIONS EATS & TREATS LTD,01749200,,Economic Development & Regen,Eco Dev & Reg Gen Bus Support,D52TD000047027,110070468
http://statistics.data.gov.uk/id/local-authority/29UP,Tonbridge & Malling Borough Council,9/13/2023,0011046877/1,11046877, 18.92,Royal Mail,00086200,,Postages - Business Reply,Electoral Registration,D31MF000045003,
http://statistics.data.gov.uk/id/local-authority/29UP,Tonbridge & Malling Borough Council,9/13/2023,0011046878/1,11046878, 494.00,Disclosure & Barring Service,00865900,,Professional Fees,Licences - Fee Paying,H27SH000044001,
http://statistics.data.gov.uk/id/local-authority/29UP,Tonbridge & Malling Borough Council,9/13/2023,0011046879/3,11046879, 63.60,Kent Crisps Ltd,01806500,,Purchases,TIC Stock Account,K18AX000001002,
http://statistics.data.gov.uk/id/local-authority/29UP,Tonbridge & Malling Borough Council,9/13/2023,0011046881/1,11046881, 913.26,Castle Water,01696500,,Water Charges (Metered),Buildings,D21FEDD5024001,
http://statistics.data.gov.uk/id/local-authority/29UP,Tonbridge & Malling Borough Council,9/13/2023,0011046882/3,11046882, 1022.96,The Oyster Partnership,01196400,,Temporary Staff,Admin & Prop Sals&Overheads,D01AADA1111300,
http://statistics.data.gov.uk/id/local-authority/29UP,Tonbridge & Malling Borough Council,9/13/2023,0011046883/1,11046883, 1255.00,Assoc. of Tourist Attractions in Kent,00006000,573619712,Marketing,Information & Publicity,D32MJ000044215,110070465
http://statistics.data.gov.uk/id/local-authority/29UP,Tonbridge & Malling Borough Council,9/13/2023,0011046884/1,11046884, 33.98,KCS Education/CSG Global Education Ltd,01897200,408845925,Stationery,Admin & Prop Sals&Overheads,D01AA000043003,110070460
http://statistics.data.gov.uk/id/local-authority/29UP,Tonbridge & Malling Borough Council,9/13/2023,0011046884/2,11046884, 45.98,KCS Education/CSG Global Education Ltd,01897200,408845925,Stationery,Admin & Prop Sals&Overheads,D01AA000043003,110070460
http://statistics.data.gov.uk/id/local-authority/29UP,Tonbridge & Malling Borough Council,9/13/2023,0011046885/1,11046885, 540.00,G C Industrial Heating Services,00578100,,BRREP Servicing - Heating Syst,Angel Centre,M15HAP20001934,110070475
http://statistics.data.gov.uk/id/local-authority/29UP,Tonbridge & Malling Borough Council,9/13/2023,0011046886/1,11046886, 1210.00,G C Industrial Heating Services,00578100,,BRREP Servicing - boilers,Tonbridge Swimming Pool,M15HBP20001929,110070471
http://statistics.data.gov.uk/id/local-authority/29UP,Tonbridge & Malling Borough Council,9/13/2023,0011046887/1,11046887, 1190.00,Spy Alarms Ltd,01608800,,BRREP Servicing-IntruderAlarm,Leybourne Lakes Country Park,M15HLP20001939,110070445
http://statistics.data.gov.uk/id/local-authority/29UP,Tonbridge & Malling Borough Council,9/13/2023,0011046888/1,11046888, 580.00,G C Industrial Heating Services,00578100,,BRREP Response - General,Angel Centre,M15HAP50001997,110070472
http://statistics.data.gov.uk/id/local-authority/29UP,Tonbridge & Malling Borough Council,9/13/2023,0011046889/1,11046889, 238.00,Southern Lightning Engineers Ltd,00094000,,BRREP Servicing-Lightning Prot,Tonbridge Swimming Pool,M15HBP20001942,110070308
http://statistics.data.gov.uk/id/local-authority/29UP,Tonbridge & Malling Borough Council,9/13/2023,0011046890/1,11046890, 570.00,G C Industrial Heating Services,00578100,,BRREP Response - General,Angel Centre,M15HAP50001997,110070473
http://statistics.data.gov.uk/id/local-authority/29UP,Tonbridge & Malling Borough Council,9/13/2023,0011046891/1,11046891, 1020.00,G C Industrial Heating Services,00578100,,BRREP Response - General,Leis Man Poult Wood Golf Centr,M15HEP50001997,110070470
http://statistics.data.gov.uk/id/local-authority/29UP,Tonbridge & Malling Borough Council,9/13/2023,0011046892/1,11046892, 570.00,G C Industrial Heating Services,00578100,,BRREP Response - General,Angel Centre,M15HAP50001997,110070474
http://statistics.data.gov.uk/id/local-authority/29UP,Tonbridge & Malling Borough Council,9/13/2023,0011046893/1,11046893, 802.26,ProMinent Fluid Controls (UK) Ltd,00080800,,BRREP Plant renewals,Larkfield Leisure Centre,M15HDP20001909,110070477
http://statistics.data.gov.uk/id/local-authority/29UP,Tonbridge & Malling Borough Council,9/13/2023,0011046894/1,11046894, 150.00,G C Industrial Heating Services,00578100,,BRREP Response - General,Tonbridge Castle / CAB,M15KFP50001997,110070446
http://statistics.data.gov.uk/id/local-authority/29UP,Tonbridge & Malling Borough Council,9/13/2023,0011046895/1,11046895, 181.50,Glaze-Tech Services Ltd,00779500,,BRREP Response - General,Angel Centre,M15HAP50001997,110070428
http://statistics.data.gov.uk/id/local-authority/29UP,Tonbridge & Malling Borough Council,9/13/2023,0011046896/1,11046896, 396.00,Chillmech Limited,00978700,,BRREP Servicing - air handling,Tonbridge Castle / CAB,M15KFP20001936,110070336
http://statistics.data.gov.uk/id/local-authority/29UP,Tonbridge & Malling Borough Council,9/13/2023,0011046897/1,11046897, 280.00,Loxton Installations Ltd,01278800,,BRREP Serv Internal Lighting,Tonbridge Castle / CAB,M15KFP20001957,110070157
http://statistics.data.gov.uk/id/local-authority/29UP,Tonbridge & Malling Borough Council,9/13/2023,0011046898/1,11046898, 446.00,Loxton Installations Ltd,01278800,,BRREP Response - General,Leybourne Lakes Country Park,M15HLP50001997,110070386
http://statistics.data.gov.uk/id/local-authority/29UP,Tonbridge & Malling Borough Council,9/13/2023,0011046899/1,11046899, 182.00,Loxton Installations Ltd,01278800,,BRREP Serv Internal Lighting,Larkfield Leisure Centre,M15HDP20001957,110070165
http://statistics.data.gov.uk/id/local-authority/29UP,Tonbridge & Malling Borough Council,9/13/2023,0011046900/1,11046900, 192.00,Loxton Installations Ltd,01278800,,BRREP Serv Internal Lighting,Larkfield Leisure Centre,M15HDP20001957,110070255
http://statistics.data.gov.uk/id/local-authority/29UP,Tonbridge & Malling Borough Council,9/13/2023,0011046901/1,11046901, 1370.00,Loxton Installations Ltd,01278800,,BRREP Sports Hall light mntce,Larkfield Leisure Centre,M15HDP20001914,110070263
http://statistics.data.gov.uk/id/local-authority/29UP,Tonbridge & Malling Borough Council,9/13/2023,0011046902/1,11046902, 472.00,Loxton Installations Ltd,01278800,,BRREP Servicing - ext lighting,Larkfield Leisure Centre,M15HDP20001941,110070253
http://statistics.data.gov.uk/id/local-authority/29UP,Tonbridge & Malling Borough Council,9/13/2023,0011046903/1,11046903, 456.93,Security & Electronic Solutions Ltd,01379500,,BRREP Servicing - CCTV,Leis Man Poult Wood Golf Centr,M15HEP20001952,110070455
http://statistics.data.gov.uk/id/local-authority/29UP,Tonbridge & Malling Borough Council,9/13/2023,0011046904/1,11046904, 717.65,Security & Electronic Solutions Ltd,01379500,,BRREP Servicing - CCTV,Larkfield Leisure Centre,M15HDP20001952,110070457
http://statistics.data.gov.uk/id/local-authority/29UP,Tonbridge & Malling Borough Council,9/13/2023,0011046905/1,11046905, 717.65,Security & Electronic Solutions Ltd,01379500,,BRREP Servicing - CCTV,Tonbridge Swimming Pool,M15HBP20001952,110070456
http://statistics.data.gov.uk/id/local-authority/29UP,Tonbridge & Malling Borough Council,9/13/2023,0011046906/1,11046906, 48.71,Atlas Facilities Managment Limited ,01075900,,Miscellaneous Services,Cleaning & Security,D21FDDD6044015,
http://statistics.data.gov.uk/id/local-authority/29UP,Tonbridge & Malling Borough Council,9/13/2023,0011046907/1,11046907, 155.80,Premier Paper Group,01421800,,Purchases - Paper,Printing,D22GA000040102,
http://statistics.data.gov.uk/id/local-authority/29UP,Tonbridge & Malling Borough Council,9/13/2023,0011046908/1,11046908, 60.90,Biffa Waste Services Ltd,01284500,,Trade Refuse Charges,Cleaning & Security,D21FD000044008,
http://statistics.data.gov.uk/id/local-authority/29UP,Tonbridge & Malling Borough Council,9/13/2023,0011046909/1,11046909, 85.20,Biffa Waste Services Ltd,01284500,,Trade Refuse Charges,Cleaning & Security,D21FD000044008,
http://statistics.data.gov.uk/id/local-authority/29UP,Tonbridge & Malling Borough Council,9/13/2023,0011046911/1,11046911, 2123.44,GSF SANDYLIGHT LTD,01705300,,Temporary Staff,Admin & Prop Sals&Overheads,D01AADA0511300,
http://statistics.data.gov.uk/id/local-authority/29UP,Tonbridge & Malling Borough Council,9/13/2023,0011046913/1,11046913, 592.02,Royal Mail,00086200,,Postages - Business Reply,Electoral Registration,D31MF000045003,
http://statistics.data.gov.uk/id/local-authority/29UP,Tonbridge & Malling Borough Council,9/13/2023,0011046913/2,11046913, 12.00,Royal Mail,00086200,,Purchases,Business Reply Stock Account,K14AT000001002,
http://statistics.data.gov.uk/id/local-authority/29UP,Tonbridge & Malling Borough Council,9/13/2023,0011046914/1,11046914, 225.00,Guardian Security & Fire Ltd,01899300,,BRREP Servicing - FireAlarmSys,Gibson Building East,M15KGP20001937,
http://statistics.data.gov.uk/id/local-authority/29UP,Tonbridge & Malling Borough Council,9/13/2023,0011046915/1,11046915, 270.00,Guardian Security & Fire Ltd,01899300,,BRREP Servicing - FireAlarmSys,Gibson Building West,M15KBP20001937,
http://statistics.data.gov.uk/id/local-authority/29UP,Tonbridge & Malling Borough Council,9/13/2023,0011046916/1,11046916, 450.00,BML Building Services Ltd,01505000,,Repairs & Mtce to Buildings,Homelessness,C01AATNHS20101,
http://statistics.data.gov.uk/id/local-authority/29UP,Tonbridge & Malling Borough Council,9/13/2023,0011046917/1,11046917, 150.00,BML Building Services Ltd,01505000,,Repairs & Mtce to Buildings,Homelessness,C01AATNHS20101,
http://statistics.data.gov.uk/id/local-authority/29UP,Tonbridge & Malling Borough Council,9/13/2023,0011046918/3,11046918, 90.00,Guardian Security & Fire Ltd,01899300,,BRREP Servicing - FireAlarmSys,Tonbridge Castle / CAB,M15KFP20001937,
http://statistics.data.gov.uk/id/local-authority/29UP,Tonbridge & Malling Borough Council,9/13/2023,0011046919/3,11046919, 90.00,Guardian Security & Fire Ltd,01899300,,BRREP Servicing - FireAlarmSys,Tonbridge Castle Gatehouse,M15HKP20001937,
http://statistics.data.gov.uk/id/local-authority/29UP,Tonbridge & Malling Borough Council,9/13/2023,0011046920/3,11046920, 589.41,KH Recruitment Ltd,01738900,,Temporary Staff,Personnel Sals&Overheads,D01ABDB0311300,
http://statistics.data.gov.uk/id/local-authority/29UP,Tonbridge & Malling Borough Council,9/13/2023,0011046921/3,11046921, 65.00,Guardian Security & Fire Ltd,01899300,,BRREP Servicing - FireAlarmSys,Tonbridge Farm Pavillion,M15HGP20001937,
http://statistics.data.gov.uk/id/local-authority/29UP,Tonbridge & Malling Borough Council,9/13/2023,0011046922/1,11046922, 2771.00,Record UK Ltd,01116900,,BRREP Servicing-entrance doors,Larkfield Leisure Centre,M15HDP20001927,110070380
http://statistics.data.gov.uk/id/local-authority/29UP,Tonbridge & Malling Borough Council,9/13/2023,0011046923/1,11046923, 331.00,Record UK Ltd,01116900,,BRREP Servicing-entrance doors,Larkfield Leisure Centre,M15HDP20001927,110069954
http://statistics.data.gov.uk/id/local-authority/29UP,Tonbridge & Malling Borough Council,9/13/2023,0011046924/1,11046924, 1087.00,Record UK Ltd,01116900,,BRREP Servicing-entrance doors,Larkfield Leisure Centre,M15HDP20001927,110070240
http://statistics.data.gov.uk/id/local-authority/29UP,Tonbridge & Malling Borough Council,9/13/2023,0011046925/1,11046925, 110.00,Triple S Lift Services,01344900,,BRREP Servicing - lifts,Angel Centre,M15HAP20001930,110069286
http://statistics.data.gov.uk/id/local-authority/29UP,Tonbridge & Malling Borough Council,9/13/2023,0011046926/1,11046926, 68.00,NKM Fire Protection Ltd,01784600,,BRREP Servicing - FireAlarmSys,Tonbridge Swimming Pool,M15HBP20001937,110070467
http://statistics.data.gov.uk/id/local-authority/29UP,Tonbridge & Malling Borough Council,9/13/2023,0011046927/1,11046927, 480.00,G C Industrial Heating Services,00578100,,BRREP Response - General,Angel Centre,M15HAP50001997,110070479
http://statistics.data.gov.uk/id/local-authority/29UP,Tonbridge & Malling Borough Council,9/13/2023,0011046928/1,11046928, 860.00,G C Industrial Heating Services,00578100,,BRREP Plant renewals,Larkfield Leisure Centre,M15HDP20001909,110070478
http://statistics.data.gov.uk/id/local-authority/29UP,Tonbridge & Malling Borough Council,9/13/2023,0012008821/1,12008821, 5000.00,Agile Applications Ltd,01850800,,Consultancy Fees,Information Technology,D27KD000044011,410032202
http://statistics.data.gov.uk/id/local-authority/29UP,Tonbridge & Malling Borough Council,9/13/2023,0012008822/1,12008822, 1080.00,Agile Applications Ltd,01850800,,Consultancy Fees,Information Technology,D27KD000044011,410032414
http://statistics.data.gov.uk/id/local-authority/29UP,Tonbridge & Malling Borough Council,9/13/2023,0012008822/2,12008822, 1800.00,Agile Applications Ltd,01850800,,Consultancy Fees,Information Technology,D27KD000044011,410032414
http://statistics.data.gov.uk/id/local-authority/29UP,Tonbridge & Malling Borough Council,9/13/2023,0012008822/3,12008822, 1080.00,Agile Applications Ltd,01850800,,Consultancy Fees,Information Technology,D27KD000044011,410032414
http://statistics.data.gov.uk/id/local-authority/29UP,Tonbridge & Malling Borough Council,9/13/2023,0012008823/3,12008823, 11.65,Daisy Communications,01068100,,Telephones - Rentals,General Admin Telephones,D24GT000045005,
http://statistics.data.gov.uk/id/local-authority/29UP,Tonbridge & Malling Borough Council,9/13/2023,0012008823/4,12008823, 285.76,Daisy Communications,01068100,,Telephones - Call Costs,General Admin Telephones,D24GT000045006,
http://statistics.data.gov.uk/id/local-authority/29UP,Tonbridge & Malling Borough Council,9/13/2023,0012008823/5,12008823, 95.92,Daisy Communications,01068100,,Leased Lines & Modems,Information Technology,D27KD000045011,
http://statistics.data.gov.uk/id/local-authority/29UP,Tonbridge & Malling Borough Council,9/13/2023,0012008823/6,12008823, 74.46,Daisy Communications,01068100,,Maintenance - General,Security Services Management,E09GA000040135,
http://statistics.data.gov.uk/id/local-authority/29UP,Tonbridge & Malling Borough Council,9/13/2023,0012008824/3,12008824, 1374.37,NTT Cloud Communications UK Ltd,01794600,,Software Hire & Support,Information Technology,D27KD000044059,
http://statistics.data.gov.uk/id/local-authority/29UP,Tonbridge & Malling Borough Council,9/13/2023,0012008825/3,12008825, 18.08,Esendex Limited,01008900,,Leased Lines & Modems,Information Technology,D27KD000045011,
http://statistics.data.gov.uk/id/local-authority/29UP,Tonbridge & Malling Borough Council,9/13/2023,0012008826/3,12008826, 2061.24,NTT Cloud Communications UK Ltd,01794600,,Software Hire & Support,Information Technology,D27KD000044059,
http://statistics.data.gov.uk/id/local-authority/29UP,Tonbridge & Malling Borough Council,9/13/2023,0012008827/1,12008827, 218.53,KCS - KCC,00054200,,Leasing Charges,Multi Function Devices,D22GB000044038,
http://statistics.data.gov.uk/id/local-authority/29UP,Tonbridge & Malling Borough Council,9/13/2023,0012008828/1,12008828, 218.53,KCS - KCC,00054200,,Leasing Charges,Multi Function Devices,D22GB000044038,
http://statistics.data.gov.uk/id/local-authority/29UP,Tonbridge & Malling Borough Council,9/13/2023,0012008829/1,12008829, 218.53,KCS - KCC,00054200,,Leasing Charges,Multi Function Devices,D22GB000044038,
http://statistics.data.gov.uk/id/local-authority/29UP,Tonbridge & Malling Borough Council,9/13/2023,0012008830/1,12008830, 218.53,KCS - KCC,00054200,,Leasing Charges,Multi Function Devices,D22GB000044038,
http://statistics.data.gov.uk/id/local-authority/29UP,Tonbridge & Malling Borough Council,9/13/2023,0012008831/1,12008831, 364.10,KCS - KCC,00054200,,Leasing Charges,Multi Function Devices,D22GB000044038,
http://statistics.data.gov.uk/id/local-authority/29UP,Tonbridge & Malling Borough Council,9/13/2023,0012008831/2,12008831, 59.70,KCS - KCC,00054200,,Leasing Charges,Multi Function Devices,D22GB000044038,
http://statistics.data.gov.uk/id/local-authority/29UP,Tonbridge & Malling Borough Council,9/13/2023,0012008832/1,12008832, 5000.00,Agile Applications Ltd,01850800,,Consultancy Fees,Information Technology,D27KD000044011,410032202
http://statistics.data.gov.uk/id/local-authority/29UP,Tonbridge & Malling Borough Council,9/13/2023,0012008833/1,12008833, 188.12,Perfect Colours,01672500,,Toner Cartridges,Information Technology,D27KD000043018,410032471
http://statistics.data.gov.uk/id/local-authority/29UP,Tonbridge & Malling Borough Council,9/13/2023,0012008833/2,12008833, 188.12,Perfect Colours,01672500,,Toner Cartridges,Information Technology,D27KD000043018,410032471
http://statistics.data.gov.uk/id/local-authority/29UP,Tonbridge & Malling Borough Council,9/13/2023,0012008833/3,12008833, 188.12,Perfect Colours,01672500,,Toner Cartridges,Information Technology,D27KD000043018,410032471
http://statistics.data.gov.uk/id/local-authority/29UP,Tonbridge & Malling Borough Council,9/13/2023,0012008833/4,12008833, 188.12,Perfect Colours,01672500,,Toner Cartridges,Information Technology,D27KD000043018,410032471
http://statistics.data.gov.uk/id/local-authority/29UP,Tonbridge & Malling Borough Council,9/13/2023,0012008833/5,12008833, 168.74,Perfect Colours,01672500,,Toner Cartridges,Information Technology,D27KD000043018,410032471
http://statistics.data.gov.uk/id/local-authority/29UP,Tonbridge & Malling Borough Council,9/13/2023,0012008833/6,12008833, 188.12,Perfect Colours,01672500,,Toner Cartridges,Information Technology,D27KD000043018,410032471
http://statistics.data.gov.uk/id/local-authority/29UP,Tonbridge & Malling Borough Council,9/13/2023,0012008833/7,12008833, 185.62,Perfect Colours,01672500,,Toner Cartridges,Information Technology,D27KD000043018,410032471
http://statistics.data.gov.uk/id/local-authority/29UP,Tonbridge & Malling Borough Council,9/13/2023,0012008833/8,12008833, 12.00,Perfect Colours,01672500,,Delivery Expenses,Information Technology,D27KD000044069,410032471
http://statistics.data.gov.uk/id/local-authority/29UP,Tonbridge & Malling Borough Council,9/13/2023,0021038802/3,21038802, 9199.08,Technogym UK Ltd,00900000,,General,Angel Centre,B01AA000054012,
http://statistics.data.gov.uk/id/local-authority/29UP,Tonbridge & Malling Borough Council,9/13/2023,0021038805/1,21038805, 25.35,B&Q/Screwfix Direct(TradeUKAccount),00141300,,Maintenance of Grounds,Haysden Country Park,B22LC000020402,
http://statistics.data.gov.uk/id/local-authority/29UP,Tonbridge & Malling Borough Council,9/13/2023,0021038806/1,21038806, 288.99,Lamberhurst Engineering Ltd,01306400,430064050,Purchases,Haysden Country Park,B22LC000040101,
http://statistics.data.gov.uk/id/local-authority/29UP,Tonbridge & Malling Borough Council,9/13/2023,0021038807/1,21038807, 25.00,Keep Britain Tidy,00519900,,Maintenance of Grounds,Sports Grounds,B13ET000020402,210057320
http://statistics.data.gov.uk/id/local-authority/29UP,Tonbridge & Malling Borough Council,9/13/2023,0021038808/1,21038808, 390.00,Green Leaf Tree & Landscapes Limited,01860500,,Maintenance of Grounds,Open Spaces & Amenity Areas,B22LE000020402,210057378
http://statistics.data.gov.uk/id/local-authority/29UP,Tonbridge & Malling Borough Council,9/13/2023,0021038809/1,21038809, 44.68,Castle Water,01696500,,Water Charges (Metered),Cemetery,B26MP000024001,
http://statistics.data.gov.uk/id/local-authority/29UP,Tonbridge & Malling Borough Council,9/13/2023,0021038810/1,21038810, 72.03,Castle Water,01696500,,Water Charges (Metered),Cemetery,B26MP000024001,
http://statistics.data.gov.uk/id/local-authority/29UP,Tonbridge & Malling Borough Council,9/13/2023,0021038811/1,21038811, 48.71,Atlas Facilities Managment Limited ,01075900,,Gates / Security,Patrolling,B22LF000044017,
http://statistics.data.gov.uk/id/local-authority/29UP,Tonbridge & Malling Borough Council,9/13/2023,0021038812/1,21038812, 730.00,Arnold Tarmac Ltd,01685100,619126544,Maintenance of Grounds,Tonbridge Castle Grounds,B22LB000020402,210057366
http://statistics.data.gov.uk/id/local-authority/29UP,Tonbridge & Malling Borough Council,9/13/2023,0021038813/1,21038813, 550.00,Arnold Tarmac Ltd,01685100,619126544,Maintenance of Grounds,Sports Grounds,B13ET000020402,210057346
http://statistics.data.gov.uk/id/local-authority/29UP,Tonbridge & Malling Borough Council,9/13/2023,0021038814/1,21038814, 1489.42,Tonbridge & Malling Leisure Trust,01469100,,BRREP Response - General,Angel Centre,M15HAP50001997,
http://statistics.data.gov.uk/id/local-authority/29UP,Tonbridge & Malling Borough Council,9/13/2023,0021038814/2,21038814, 2124.00,Tonbridge & Malling Leisure Trust,01469100,,Other Expenses,LLCP Facility Improv,P05FF000009908,
http://statistics.data.gov.uk/id/local-authority/29UP,Tonbridge & Malling Borough Council,9/13/2023,0021038815/1,21038815, 1080.00,Arnold Tarmac Ltd,01685100,619126544,Maintenance of Grounds,Tonbridge Castle Grounds,B22LB000020402,210057333
http://statistics.data.gov.uk/id/local-authority/29UP,Tonbridge & Malling Borough Council,9/13/2023,0021038816/1,21038816, 550.00,Arnold Tarmac Ltd,01685100,619126544,Maintenance of Grounds,Sports Grounds,B13ET000020402,210057247
http://statistics.data.gov.uk/id/local-authority/29UP,Tonbridge & Malling Borough Council,9/13/2023,0021038817/1,21038817, 250.00,Arnold Tarmac Ltd,01685100,619126544,Maintenance of Grounds,Sports Grounds,B13ET000020402,210057200
http://statistics.data.gov.uk/id/local-authority/29UP,Tonbridge & Malling Borough Council,9/13/2023,0022028075/1,22028075, 1000.00,Town & Country Housing Group,01385400,,Other Expenses,Housing Assistance,P03AD000009908,
http://statistics.data.gov.uk/id/local-authority/29UP,Tonbridge & Malling Borough Council,9/13/2023,0022028076/1,22028076, 3091.20,Ward Security LTD,01490000,,Dog Warden,Street Scene,H23SD000044100,
http://statistics.data.gov.uk/id/local-authority/29UP,Tonbridge & Malling Borough Council,9/13/2023,0022028077/1,22028077, 70500.00,Urbaser LTD,01718800,,Contract Payments,Refuse Collection,H20SA000054001,
http://statistics.data.gov.uk/id/local-authority/29UP,Tonbridge & Malling Borough Council,9/13/2023,0022028077/2,22028077, 57000.00,Urbaser LTD,01718800,,Contract Payments,Dry Recycling,H34SR000054001,
http://statistics.data.gov.uk/id/local-authority/29UP,Tonbridge & Malling Borough Council,9/13/2023,0022028077/3,22028077, 22500.00,Urbaser LTD,01718800,,Contract Payments,Food Recycling,H34SS000054001,
http://statistics.data.gov.uk/id/local-authority/29UP,Tonbridge & Malling Borough Council,9/13/2023,0022028078/1,22028078, 451.17,Urbaser LTD,01718800,,Maintenance of Grounds,Sports Grounds,B13ET000020402,
http://statistics.data.gov.uk/id/local-authority/29UP,Tonbridge & Malling Borough Council,9/13/2023,0022028078/10,22028078, 214.52,Urbaser LTD,01718800,,Maintenance of Grounds,Parking Off-Street,E10HA000020402,
http://statistics.data.gov.uk/id/local-authority/29UP,Tonbridge & Malling Borough Council,9/13/2023,0022028078/11,22028078, 5458.43,Urbaser LTD,01718800,,Maintenance of Grounds,Parking Off-Street,E10HAE00120402,
http://statistics.data.gov.uk/id/local-authority/29UP,Tonbridge & Malling Borough Council,9/13/2023,0022028078/12,22028078, 587.98,Urbaser LTD,01718800,,Maintenance of Grounds,Parking Off-Street,E10HAE00220402,
http://statistics.data.gov.uk/id/local-authority/29UP,Tonbridge & Malling Borough Council,9/13/2023,0022028078/13,22028078, 367.83,Urbaser LTD,01718800,,Maintenance of Grounds,Parking Off-Street,E10HAE00320402,
http://statistics.data.gov.uk/id/local-authority/29UP,Tonbridge & Malling Borough Council,9/13/2023,0022028078/14,22028078, 1923.76,Urbaser LTD,01718800,,Maintenance of Grounds,Parking Off-Street,E10HAE00420402,
http://statistics.data.gov.uk/id/local-authority/29UP,Tonbridge & Malling Borough Council,9/13/2023,0022028078/15,22028078, 319.68,Urbaser LTD,01718800,,Maintenance of Grounds,Parking Off-Street,E10HAE00520402,
http://statistics.data.gov.uk/id/local-authority/29UP,Tonbridge & Malling Borough Council,9/13/2023,0022028078/16,22028078, 1192.31,Urbaser LTD,01718800,,Maintenance of Grounds,Parking Off-Street,E10HAE00620402,
http://statistics.data.gov.uk/id/local-authority/29UP,Tonbridge & Malling Borough Council,9/13/2023,0022028078/17,22028078, 10.05,Urbaser LTD,01718800,,Maintenance of Grounds,Parking Off-Street,E10HAE00820402,
http://statistics.data.gov.uk/id/local-authority/29UP,Tonbridge & Malling Borough Council,9/13/2023,0022028078/18,22028078, 9.92,Urbaser LTD,01718800,,Maintenance of Grounds,Parking Off-Street,E10HAE00920402,
http://statistics.data.gov.uk/id/local-authority/29UP,Tonbridge & Malling Borough Council,9/13/2023,0022028078/19,22028078, 23.56,Urbaser LTD,01718800,,Maintenance of Grounds,Parking Off-Street,E10HAE01020402,
http://statistics.data.gov.uk/id/local-authority/29UP,Tonbridge & Malling Borough Council,9/13/2023,0022028078/2,22028078, 96.02,Urbaser LTD,01718800,,Maintenance of Grounds,Poult Wood Golf Centre,B21KE000020402,
http://statistics.data.gov.uk/id/local-authority/29UP,Tonbridge & Malling Borough Council,9/13/2023,0022028078/20,22028078, 111.95,Urbaser LTD,01718800,,Maintenance of Grounds,Parking Off-Street,E10HAE01120402,
http://statistics.data.gov.uk/id/local-authority/29UP,Tonbridge & Malling Borough Council,9/13/2023,0022028078/21,22028078, 70.44,Urbaser LTD,01718800,,Maintenance of Grounds,Parking Off-Street,E10HAE01220402,
http://statistics.data.gov.uk/id/local-authority/29UP,Tonbridge & Malling Borough Council,9/13/2023,0022028078/22,22028078, 1335.68,Urbaser LTD,01718800,,Maintenance of Grounds,Parking Off-Street,E10HAE01320402,
http://statistics.data.gov.uk/id/local-authority/29UP,Tonbridge & Malling Borough Council,9/13/2023,0022028078/23,22028078, 101.58,Urbaser LTD,01718800,,Maintenance of Grounds,Parking Off-Street,E10HAE01420402,
http://statistics.data.gov.uk/id/local-authority/29UP,Tonbridge & Malling Borough Council,9/13/2023,0022028078/24,22028078, 313.05,Urbaser LTD,01718800,,Maintenance of Grounds,Parking Off-Street,E10HAE01520402,
http://statistics.data.gov.uk/id/local-authority/29UP,Tonbridge & Malling Borough Council,9/13/2023,0022028078/25,22028078, 336.69,Urbaser LTD,01718800,,Maintenance of Grounds,Parking Off-Street,E10HAE01620402,
http://statistics.data.gov.uk/id/local-authority/29UP,Tonbridge & Malling Borough Council,9/13/2023,0022028078/26,22028078, 993.96,Urbaser LTD,01718800,,Maintenance of Grounds,Parking Off-Street,E10HAE01720402,
http://statistics.data.gov.uk/id/local-authority/29UP,Tonbridge & Malling Borough Council,9/13/2023,0022028078/27,22028078, 285.29,Urbaser LTD,01718800,,Maintenance of Grounds,Parking Off-Street,E10HAE01920402,
http://statistics.data.gov.uk/id/local-authority/29UP,Tonbridge & Malling Borough Council,9/13/2023,0022028078/28,22028078, 626.69,Urbaser LTD,01718800,,Maintenance of Grounds,Parking Off-Street,E10HAE02020402,
http://statistics.data.gov.uk/id/local-authority/29UP,Tonbridge & Malling Borough Council,9/13/2023,0022028078/29,22028078, 21.76,Urbaser LTD,01718800,,Maintenance of Grounds,Parking Off-Street,E10HAE02120402,
http://statistics.data.gov.uk/id/local-authority/29UP,Tonbridge & Malling Borough Council,9/13/2023,0022028078/3,22028078, 39.62,Urbaser LTD,01718800,,Maintenance of Grounds,Haysden Country Park,B22LC000020402,
http://statistics.data.gov.uk/id/local-authority/29UP,Tonbridge & Malling Borough Council,9/13/2023,0022028078/30,22028078, 143.26,Urbaser LTD,01718800,,Maintenance of Grounds,Parking Off-Street,E10HAE02220402,
http://statistics.data.gov.uk/id/local-authority/29UP,Tonbridge & Malling Borough Council,9/13/2023,0022028078/31,22028078, 1204.31,Urbaser LTD,01718800,,Maintenance of Grounds,Parking Off-Street,E10HAE02320402,
http://statistics.data.gov.uk/id/local-authority/29UP,Tonbridge & Malling Borough Council,9/13/2023,0022028078/32,22028078, 3.11,Urbaser LTD,01718800,,Maintenance of Grounds,Parking Off-Street,E10HAE02720402,
http://statistics.data.gov.uk/id/local-authority/29UP,Tonbridge & Malling Borough Council,9/13/2023,0022028078/33,22028078, 437.60,Urbaser LTD,01718800,,Maintenance of Grounds,Parking Off-Street,E10HAE02820402,
http://statistics.data.gov.uk/id/local-authority/29UP,Tonbridge & Malling Borough Council,9/13/2023,0022028078/34,22028078, 7.88,Urbaser LTD,01718800,,Maintenance of Grounds,Parking Off-Street,E10HAE02920402,
http://statistics.data.gov.uk/id/local-authority/29UP,Tonbridge & Malling Borough Council,9/13/2023,0022028078/35,22028078, 46.38,Urbaser LTD,01718800,,Maintenance of Grounds,Parking Off-Street,E10HAE03020402,
http://statistics.data.gov.uk/id/local-authority/29UP,Tonbridge & Malling Borough Council,9/13/2023,0022028078/36,22028078, 39.46,Urbaser LTD,01718800,,Maintenance of Grounds,Parking Off-Street,E10HAE03120402,
http://statistics.data.gov.uk/id/local-authority/29UP,Tonbridge & Malling Borough Council,9/13/2023,0022028078/37,22028078, 836.71,Urbaser LTD,01718800,,Maintenance of Grounds,Parking Off-Street,E10HAE04020402,
http://statistics.data.gov.uk/id/local-authority/29UP,Tonbridge & Malling Borough Council,9/13/2023,0022028078/38,22028078, 580.32,Urbaser LTD,01718800,,Maintenance of Grounds,Parking Off-Street,E10HAE04220402,
http://statistics.data.gov.uk/id/local-authority/29UP,Tonbridge & Malling Borough Council,9/13/2023,0022028078/39,22028078, 1665.68,Urbaser LTD,01718800,,Maintenance of Grounds,Parking Off-Street,E10HAE04520402,
http://statistics.data.gov.uk/id/local-authority/29UP,Tonbridge & Malling Borough Council,9/13/2023,0022028078/4,22028078, 30.43,Urbaser LTD,01718800,,Dog Bin Emptying,Haysden Country Park,B22LC000044012,
http://statistics.data.gov.uk/id/local-authority/29UP,Tonbridge & Malling Borough Council,9/13/2023,0022028078/40,22028078, 107939.06,Urbaser LTD,01718800,,Contract Payments,Refuse Collection,H20SA000054001,
http://statistics.data.gov.uk/id/local-authority/29UP,Tonbridge & Malling Borough Council,9/13/2023,0022028078/41,22028078, 1101.97,Urbaser LTD,01718800,,Responsible Dog Ownership,Street Scene,H23SD000044050,
http://statistics.data.gov.uk/id/local-authority/29UP,Tonbridge & Malling Borough Council,9/13/2023,0022028078/42,22028078, 65916.68,Urbaser LTD,01718800,,Contract Payments,Street Scene,H23SD000054001,
http://statistics.data.gov.uk/id/local-authority/29UP,Tonbridge & Malling Borough Council,9/13/2023,0022028078/43,22028078, 414.98,Urbaser LTD,01718800,,General Maintenance,Dry Recycling,H34SR000020301,
http://statistics.data.gov.uk/id/local-authority/29UP,Tonbridge & Malling Borough Council,9/13/2023,0022028078/44,22028078, 98065.11,Urbaser LTD,01718800,,Contract Payments,Dry Recycling,H34SR000054001,
http://statistics.data.gov.uk/id/local-authority/29UP,Tonbridge & Malling Borough Council,9/13/2023,0022028078/45,22028078, 38371.84,Urbaser LTD,01718800,,Contract Payments,Food Recycling,H34SS000054001,
http://statistics.data.gov.uk/id/local-authority/29UP,Tonbridge & Malling Borough Council,9/13/2023,0022028078/46,22028078, 20834.10,Urbaser LTD,01718800,,Contract Payments,Garden Waste Recycling,H34ST000054001,
http://statistics.data.gov.uk/id/local-authority/29UP,Tonbridge & Malling Borough Council,9/13/2023,0022028078/5,22028078, 862.61,Urbaser LTD,01718800,,Maintenance of Grounds,Open Spaces & Amenity Areas,B22LE000020402,
http://statistics.data.gov.uk/id/local-authority/29UP,Tonbridge & Malling Borough Council,9/13/2023,0022028078/6,22028078, 16.22,Urbaser LTD,01718800,,Dog Bin Emptying,Open Spaces & Amenity Areas,B22LE000044012,
http://statistics.data.gov.uk/id/local-authority/29UP,Tonbridge & Malling Borough Council,9/13/2023,0022028078/7,22028078, 28.00,Urbaser LTD,01718800,,Maintenance of Grounds,Countryside/Woodland Mgt,B22LG000020402,
http://statistics.data.gov.uk/id/local-authority/29UP,Tonbridge & Malling Borough Council,9/13/2023,0022028078/8,22028078, 30.43,Urbaser LTD,01718800,,Dog Bin Emptying,Leybourne Lakes Country Park,B22LK000044012,
http://statistics.data.gov.uk/id/local-authority/29UP,Tonbridge & Malling Borough Council,9/13/2023,0022028078/9,22028078, 70.14,Urbaser LTD,01718800,,Maintenance of Grounds,Grounds,D21FF000020402,
http://statistics.data.gov.uk/id/local-authority/29UP,Tonbridge & Malling Borough Council,9/13/2023,0022028079/1,22028079, 250.00,REDACTED PERSONAL DATA,01913800,,Compensation,Homelessness,C01AA000048023,
http://statistics.data.gov.uk/id/local-authority/29UP,Tonbridge & Malling Borough Council,9/13/2023,0022028080/1,22028080, 1650.00,REDACTED PERSONAL DATA,01913900,,Compensation,Homelessness,C01AA000048023,
http://statistics.data.gov.uk/id/local-authority/29UP,Tonbridge & Malling Borough Council,9/13/2023,0022028081/3,22028081, 245.00,Countrystyle Group,00835900,781981681,Collection of Card,Dry Recycling,H34SR000054008,
http://statistics.data.gov.uk/id/local-authority/29UP,Tonbridge & Malling Borough Council,9/13/2023,0022028082/1,22028082, 90.27,Castle Water,01696500,,Water Charges (Metered),Public Conveniences,H22SCH00924001,
http://statistics.data.gov.uk/id/local-authority/29UP,Tonbridge & Malling Borough Council,9/13/2023,0022028083/1,22028083, 2575.88,Castle Water,01696500,,Water Charges (Metered),Public Conveniences,H22SCH01024001,
http://statistics.data.gov.uk/id/local-authority/29UP,Tonbridge & Malling Borough Council,9/13/2023,0022028084/1,22028084, 42.18,Biffa Waste Services Ltd,01284500,,Trade Refuse Charges,Cleaning & Security,D21FD000044008,
http://statistics.data.gov.uk/id/local-authority/29UP,Tonbridge & Malling Borough Council,9/13/2023,0022028085/1,22028085, 90.00,Premier Inn,01217400,,Temporary Accommodation,Homelessness,C01AA000044051,
http://statistics.data.gov.uk/id/local-authority/29UP,Tonbridge & Malling Borough Council,9/13/2023,0022028086/1,22028086, 171.84,British Gas Services LTD,01260000,,Electricity,Homelessness,C01AAMAUN21002,
http://statistics.data.gov.uk/id/local-authority/29UP,Tonbridge & Malling Borough Council,9/13/2023,0022028087/1,22028087, 134.46,British Gas Services LTD,01260000,,Electricity,Homelessness,C01AAMAUN21002,
http://statistics.data.gov.uk/id/local-authority/29UP,Tonbridge & Malling Borough Council,9/13/2023,0022028088/3,22028088, 10000.00,Altair Consultancy & Advisory Services,01915000,222667806,Professional Fees,Housing Strategy,C12FB000044001,
http://statistics.data.gov.uk/id/local-authority/29UP,Tonbridge & Malling Borough Council,9/13/2023,0022028089/1,22028089, 1353.62,Town & Country Housing Group,01385400,,Other Expenses,Disabled Facilities Grant Mand,P03AC000009908,
http://statistics.data.gov.uk/id/local-authority/29UP,Tonbridge & Malling Borough Council,9/13/2023,0022028090/1,22028090, 7520.13,Advanced Building & Maintenance Services,01887500,937054419,Other Expenses,Disabled Facilities Grant Mand,P03AC000009908,
http://statistics.data.gov.uk/id/local-authority/29UP,Tonbridge & Malling Borough Council,9/13/2023,0022028091/1,22028091, 2820.00,Elite Complete Build LTD,01625900,,Other Expenses,Disabled Facilities Grant Mand,P03AC000009908,
http://statistics.data.gov.uk/id/local-authority/29UP,Tonbridge & Malling Borough Council,9/13/2023,0031019690/1,31019690, 5.83,REDACTED PERSONAL DATA,01914900,,Uniforms,Parking Off-Street,E10HA000042002,
http://statistics.data.gov.uk/id/local-authority/29UP,Tonbridge & Malling Borough Council,9/13/2023,0031019690/2,31019690, 29.17,REDACTED PERSONAL DATA,01914900,,Uniforms,Parking Off-Street,E10HA000042002,
http://statistics.data.gov.uk/id/local-authority/29UP,Tonbridge & Malling Borough Council,9/13/2023,0031019691/1,31019691, 2082.50,Tonbridge & Malling Leisure Trust,01469100,,Ticket Refunds - Lower Castle,Parking Off-Street,E10HAE01344199,
http://statistics.data.gov.uk/id/local-authority/29UP,Tonbridge & Malling Borough Council,9/13/2023,0031019693/3,31019693, 4.87,B&Q/Screwfix Direct(TradeUKAccount),00141300,,Purchases,Parking Off-Street,E10HA000040101,
http://statistics.data.gov.uk/id/local-authority/29UP,Tonbridge & Malling Borough Council,9/13/2023,0031019694/3,31019694, 21.42,B&Q/Screwfix Direct(TradeUKAccount),00141300,,Purchases,Parking Off-Street,E10HA000040101,
http://statistics.data.gov.uk/id/local-authority/29UP,Tonbridge & Malling Borough Council,9/13/2023,0031019699/1,31019699, 2621.00,Cleansing Service Group LTD,01457100,,Premises Repairs & Maintenance,Parking Off-Street,E10HA000020601,310043089
http://statistics.data.gov.uk/id/local-authority/29UP,Tonbridge & Malling Borough Council,9/13/2023,0031019700/4,31019700, 992.31,CDER Group,01773300,,Adjudication & Enforcement Ser,Parking Off-Street,E10HA000044230,
http://statistics.data.gov.uk/id/local-authority/29UP,Tonbridge & Malling Borough Council,9/13/2023,0031019702/1,31019702, 4500.00,Arnold Tarmac Ltd,01685100,619126544,Other Expenses,Car Park Imp Rolling Programme,P01AB000009908,310043126
http://statistics.data.gov.uk/id/local-authority/29UP,Tonbridge & Malling Borough Council,9/13/2023,0031019703/1,31019703, 710.00,Archway Highway Services Ltd,01398000,,Premises Repairs & Maintenance,Parking On-Street,E10HD000020601,310043128
http://statistics.data.gov.uk/id/local-authority/29UP,Tonbridge & Malling Borough Council,9/13/2023,0031019704/1,31019704, 216.00,SKF Contractors Ltd,00092000,621768141,Repair & Mtce of Fixed Plant,Boro Highways & Emergency Oper,E01AA000020501,310043131
http://statistics.data.gov.uk/id/local-authority/29UP,Tonbridge & Malling Borough Council,9/13/2023,0032010433/3,32010433, 1411.02,The Oyster Partnership,01196400,,Temporary Staff,Planning Sals&Overheads,D01AJDJ0111300,
http://statistics.data.gov.uk/id/local-authority/29UP,Tonbridge & Malling Borough Council,9/13/2023,0032010434/3,32010434, 640.50,The Oyster Partnership,01196400,,Temporary Staff,Planning Sals&Overheads,D01AJDJ0111300,
http://statistics.data.gov.uk/id/local-authority/29UP,Tonbridge & Malling Borough Council,9/13/2023,0032010435/1,32010435, 894.96,Kent County Council,00322500,,Development of Local Plan,Development of Local Plan,A01AE000044023,320003522
http://statistics.data.gov.uk/id/local-authority/29UP,Tonbridge & Malling Borough Council,9/13/2023,0032010436/1,32010436, 2532.50,JBA Consulting,01599000,665300941,Development of Local Plan,Development of Local Plan,A01AE000044023,210057356
http://statistics.data.gov.uk/id/local-authority/29UP,Tonbridge & Malling Borough Council,9/13/2023,0032010437/3,32010437, 2229.00,Hays Specialist Recruitment Limited,01879200,773695871,Temporary Staff,Planning Sals&Overheads,D01AJDJ0311300,
http://statistics.data.gov.uk/id/local-authority/29UP,Tonbridge & Malling Borough Council,9/13/2023,0032010438/3,32010438, 653.84,Hays Specialist Recruitment Limited,01879200,773695871,Temporary Staff,Planning Sals&Overheads,D01AJDJ0311300,
http://statistics.data.gov.uk/id/local-authority/29UP,Tonbridge & Malling Borough Council,9/13/2023,0032010439/3,32010439, 1800.00,G2 Recruitment Solutions,01786000,,Temporary Staff,Planning Sals&Overheads,D01AJDJ0011300,
http://statistics.data.gov.uk/id/local-authority/29UP,Tonbridge & Malling Borough Council,9/13/2023,0032010440/1,32010440, 460.66,Hays Specialist Recruitment Limited,01879200,773695871,Temporary Staff,Planning Sals&Overheads,D01AJDJ0311300,
http://statistics.data.gov.uk/id/local-authority/29UP,Tonbridge & Malling Borough Council,9/13/2023,0032010441/1,32010441, 2194.25,Hays Specialist Recruitment Limited,01879200,773695871,Temporary Staff,Planning Sals&Overheads,D01AJDJ0111300,
http://statistics.data.gov.uk/id/local-authority/29UP,Tonbridge & Malling Borough Council,9/13/2023,0032010442/1,32010442, 930.00,Quality Bailiffs,01835600,,Professional Fees,Development Management,A01ABENFO44001,
http://statistics.data.gov.uk/id/local-authority/29UP,Tonbridge & Malling Borough Council,9/13/2023,0032010443/1,32010443, 600.00,Quality Bailiffs,01835600,,Professional Fees,Development Management,A01ABENFO44001,
http://statistics.data.gov.uk/id/local-authority/29UP,Tonbridge & Malling Borough Council,9/13/2023,0032010444/1,32010444, 1504.00,Carrington West Limited,01844500,,Temporary Staff,Planning Sals&Overheads,D01AJDJ0111300,
http://statistics.data.gov.uk/id/local-authority/29UP,Tonbridge & Malling Borough Council,9/13/2023,0032010445/1,32010445, 1504.00,Carrington West Limited,01844500,,Temporary Staff,Planning Sals&Overheads,D01AJDJ0111300,
http://statistics.data.gov.uk/id/local-authority/29UP,Tonbridge & Malling Borough Council,9/13/2023,0032010446/1,32010446, 1552.50,Carrington West Limited,01844500,,Temporary Staff,Planning Sals&Overheads,D01AJDJ0111300,
http://statistics.data.gov.uk/id/local-authority/29UP,Tonbridge & Malling Borough Council,9/13/2023,0032010447/1,32010447, 1863.00,Carrington West Limited,01844500,,Temporary Staff,Planning Sals&Overheads,D01AJDJ0111300,
http://statistics.data.gov.uk/id/local-authority/29UP,Tonbridge & Malling Borough Council,9/13/2023,0032010448/1,32010448, 1552.50,Carrington West Limited,01844500,,Temporary Staff,Planning Sals&Overheads,D01AJDJ0111300,
http://statistics.data.gov.uk/id/local-authority/29UP,Tonbridge & Malling Borough Council,9/13/2023,0032010449/1,32010449, 1914.75,Carrington West Limited,01844500,,Temporary Staff,Planning Sals&Overheads,D01AJDJ0111300,
http://statistics.data.gov.uk/id/local-authority/29UP,Tonbridge & Malling Borough Council,9/13/2023,0041035872/1,41035872, 75000.00,KPMG Tax,00629700,,Purchases,Finance Sals&Overheads,D01AFDF0240101,410032463
http://statistics.data.gov.uk/id/local-authority/29UP,Tonbridge & Malling Borough Council,9/13/2023,0041035873/1,41035873, 796.25,Morgan Hunt UK Ltd,01086900,,Temporary Staff,Finance Sals&Overheads,D01AFDF1111300,
http://statistics.data.gov.uk/id/local-authority/29UP,Tonbridge & Malling Borough Council,9/13/2023,0041035874/1,41035874, 596.20,Morgan Hunt UK Ltd,01086900,,Temporary Staff,Finance Sals&Overheads,D01AFDF1111300,
http://statistics.data.gov.uk/id/local-authority/29UP,Tonbridge & Malling Borough Council,9/13/2023,0041035875/1,41035875, 2322.17,Rundle & Co Ltd,00087200,,Bailiffs Commission,Local Revenue & NNDR Collect,D41QA000044075,
http://statistics.data.gov.uk/id/local-authority/29UP,Tonbridge & Malling Borough Council,9/13/2023,0041035876/1,41035876, 46.67,Rundle & Co Ltd,00087200,,Bailiffs Commission,Local Revenue & NNDR Collect,D41QA000044075,
http://statistics.data.gov.uk/id/local-authority/29UP,Tonbridge & Malling Borough Council,9/13/2023,0041035877/1,41035877, 1316.14,Maidstone Borough Council,01173700,,Bailiffs Commission,Local Revenue & NNDR Collect,D41QA000044075,
http://statistics.data.gov.uk/id/local-authority/29UP,Tonbridge & Malling Borough Council,9/13/2023,0041035878/1,41035878, 250.00,Greenhalgh Kerr,01590200,,Bailiffs Commission,Local Revenue & NNDR Collect,D41QA000044075,
http://statistics.data.gov.uk/id/local-authority/29UP,Tonbridge & Malling Borough Council,9/13/2023,0041035878/2,41035878, 139.00,Greenhalgh Kerr,01590200,,Bailiffs Commission,Local Revenue & NNDR Collect,D41QA000044075,
http://statistics.data.gov.uk/id/local-authority/29UP,Tonbridge & Malling Borough Council,9/13/2023,0041035878/3,41035878, 18.00,Greenhalgh Kerr,01590200,,Bailiffs Commission,Local Revenue & NNDR Collect,D41QA000044075,
http://statistics.data.gov.uk/id/local-authority/29UP,Tonbridge & Malling Borough Council,9/13/2023,0041035879/1,41035879, 3682.50,Greenhalgh Kerr,01590200,,Bailiffs Commission,Local Revenue & NNDR Collect,D41QA000044075,
http://statistics.data.gov.uk/id/local-authority/29UP,Tonbridge & Malling Borough Council,9/13/2023,0051008843/1,51008843, 1670.00,Alpha Parking Ltd,01167300,,Ext Fees/Prof & Tech,Training,D10DCDE0413561,510010646
http://statistics.data.gov.uk/id/local-authority/29UP,Tonbridge & Malling Borough Council,9/13/2023,0051008845/1,51008845, 495.00,Association of Electoral Administrators,01652500,580583816,Ext Fees/Prof & Tech,Training,D10DCDC0413561,510010648
http://statistics.data.gov.uk/id/local-authority/29UP,Tonbridge & Malling Borough Council,9/15/2023,0041035890/1,41035890, 70.84,Allpay Limited,01816500,,Giro / Swipe Card Charges,Local Revenue & NNDR Collect,D41QA000044083,
http://statistics.data.gov.uk/id/local-authority/29UP,Tonbridge & Malling Borough Council,9/18/2023,0041035891/1,41035891, 15.00,HSBC Bank Plc,01740800,,Bank Charges,Banking Arrangements,D43QK000044222,
http://statistics.data.gov.uk/id/local-authority/29UP,Tonbridge & Malling Borough Council,9/19/2023,0041035902/1,41035902, 218.25,National Westminster Bank Plc,00069400,,Bank Charges,Banking Arrangements,D43QK000044222,
http://statistics.data.gov.uk/id/local-authority/29UP,Tonbridge & Malling Borough Council,9/20/2023,0011046930/3,11046930, 1644.03,Sellick Partnership Group Limited,01336800,,Temporary Staff,Legal Sals&Overheads,D01ARDR0011300,
http://statistics.data.gov.uk/id/local-authority/29UP,Tonbridge & Malling Borough Council,9/20/2023,0011046931/3,11046931, 1204.40,Sellick Partnership Group Limited,01336800,,Temporary Staff,Legal Sals&Overheads,D01ARDR0011300,
http://statistics.data.gov.uk/id/local-authority/29UP,Tonbridge & Malling Borough Council,9/20/2023,0011046933/1,11046933, 3645.73,Orlo (SocialSignIn),01519000,,Information & Publicity,Information & Publicity,D32MJ000044076,110070426
http://statistics.data.gov.uk/id/local-authority/29UP,Tonbridge & Malling Borough Council,9/20/2023,0011046934/3,11046934, 2329.50,Thomson Snell & Passmore,00101700,,Legal Fees,Legal Sals&Overheads,D01ARDR0044002,
http://statistics.data.gov.uk/id/local-authority/29UP,Tonbridge & Malling Borough Council,9/20/2023,0011046935/7,11046935, 1561.36,The Oyster Partnership,01196400,,Temporary Staff,Admin & Prop Sals&Overheads,D01AADA1111300,
http://statistics.data.gov.uk/id/local-authority/29UP,Tonbridge & Malling Borough Council,9/20/2023,0011046936/3,11046936, 1748.54,Royal Mail,00086200,,Purchases,Mailsort Stock Account,K37BR000001002,
http://statistics.data.gov.uk/id/local-authority/29UP,Tonbridge & Malling Borough Council,9/20/2023,0011046936/4,11046936, 4.20,Royal Mail,00086200,,Purchases,Mailsort Stock Account,K37BR000001002,
http://statistics.data.gov.uk/id/local-authority/29UP,Tonbridge & Malling Borough Council,9/20/2023,0011046936/5,11046936, 15.37,Royal Mail,00086200,,Purchases,Mailsort Stock Account,K37BR000001002,
http://statistics.data.gov.uk/id/local-authority/29UP,Tonbridge & Malling Borough Council,9/20/2023,0011046937/7,11046937, 310.15,KCS - KCC,00054200,,Estate Management Charge,Land Review,D40PS000020400,
http://statistics.data.gov.uk/id/local-authority/29UP,Tonbridge & Malling Borough Council,9/20/2023,0011046938/3,11046938, 1613.44,Royal Mail,00086200,,Purchases,Mailsort Stock Account,K37BR000001002,
http://statistics.data.gov.uk/id/local-authority/29UP,Tonbridge & Malling Borough Council,9/20/2023,0011046938/4,11046938, 4.20,Royal Mail,00086200,,Purchases,Mailsort Stock Account,K37BR000001002,
http://statistics.data.gov.uk/id/local-authority/29UP,Tonbridge & Malling Borough Council,9/20/2023,0011046938/5,11046938, 11.16,Royal Mail,00086200,,Purchases,Mailsort Stock Account,K37BR000001002,
http://statistics.data.gov.uk/id/local-authority/29UP,Tonbridge & Malling Borough Council,9/20/2023,0011046939/1,11046939, 998.97,Haywards Butchers Limited,01905800,,Economic Development & Regen,Eco Dev & Reg Gen Bus Support,D52TD000047027,
http://statistics.data.gov.uk/id/local-authority/29UP,Tonbridge & Malling Borough Council,9/20/2023,0012008834/1,12008834, 630.00,Idox Software Ltd,00962400,,Software Hire & Support,Information Technology,D27KD000044059,410032472
http://statistics.data.gov.uk/id/local-authority/29UP,Tonbridge & Malling Borough Council,9/20/2023,0012008835/1,12008835, 34.99,CCS Media Ltd,00018000,,Purchases,Information Technology,D27KD000040101,410032474
http://statistics.data.gov.uk/id/local-authority/29UP,Tonbridge & Malling Borough Council,9/20/2023,0012008835/2,12008835, 5.00,CCS Media Ltd,00018000,,Delivery Expenses,Information Technology,D27KD000044069,410032474
http://statistics.data.gov.uk/id/local-authority/29UP,Tonbridge & Malling Borough Council,9/20/2023,0012008836/3,12008836, 16081.92,Phoenix Software Ltd,00077400,755349015,Software Hire & Support,Information Technology,D27KD000044059,
http://statistics.data.gov.uk/id/local-authority/29UP,Tonbridge & Malling Borough Council,9/20/2023,0012008837/1,12008837, 49.99,CCS Media Ltd,00018000,,Maintenance - Ancillary Equip,Information Technology,D27KD000040137,410032468
http://statistics.data.gov.uk/id/local-authority/29UP,Tonbridge & Malling Borough Council,9/20/2023,0012008837/2,12008837, 6.95,CCS Media Ltd,00018000,,Delivery Expenses,Information Technology,D27KD000044069,410032468
http://statistics.data.gov.uk/id/local-authority/29UP,Tonbridge & Malling Borough Council,9/20/2023,0012008838/1,12008838, 8075.00,Jadu Creative,01770500,,Consultancy Fees,Information Technology,D27KD000044011,410032473
http://statistics.data.gov.uk/id/local-authority/29UP,Tonbridge & Malling Borough Council,9/20/2023,0012008839/1,12008839, 204.95,CCS Media Ltd,00018000,,Purchases,Information Technology,D27KD000040101,410032475
http://statistics.data.gov.uk/id/local-authority/29UP,Tonbridge & Malling Borough Council,9/20/2023,0012008839/2,12008839, 224.95,CCS Media Ltd,00018000,,Purchases,Information Technology,D27KD000040101,410032475
http://statistics.data.gov.uk/id/local-authority/29UP,Tonbridge & Malling Borough Council,9/20/2023,0012008839/3,12008839, 6.95,CCS Media Ltd,00018000,,Delivery Expenses,Information Technology,D27KD000044069,410032475
http://statistics.data.gov.uk/id/local-authority/29UP,Tonbridge & Malling Borough Council,9/20/2023,0021038818/1,21038818, 63.00,Leybourne Lake Watersports Centre,01735000,,Partnership Fees,Leisure Planning & Policy,B37SD000044048,210057370
http://statistics.data.gov.uk/id/local-authority/29UP,Tonbridge & Malling Borough Council,9/20/2023,0021038820/1,21038820, 165.19,Landscape Services Ltd,00057600,,Grounds Maintenance Contract,Cemetery,B26MP000050103,
http://statistics.data.gov.uk/id/local-authority/29UP,Tonbridge & Malling Borough Council,9/20/2023,0021038821/1,21038821, 365.96,Landscape Services Ltd,00057600,,Grounds Maintenance Contract,Cemetery,B26MP000050103,
http://statistics.data.gov.uk/id/local-authority/29UP,Tonbridge & Malling Borough Council,9/20/2023,0021038822/1,21038822, 8162.00,Coastal Nets Limited,01914800,,Initial Furniture & Equipment,Capital Renewals Leisure,P05KGBC0309906,210057375
http://statistics.data.gov.uk/id/local-authority/29UP,Tonbridge & Malling Borough Council,9/20/2023,0021038823/1,21038823, 181.25,Sports Connect UK Ltd/ ASW Connect Ltd,01846900,426842974,Partnership Fees,Leisure Planning & Policy,B37SD000044048,210057377
http://statistics.data.gov.uk/id/local-authority/29UP,Tonbridge & Malling Borough Council,9/20/2023,0021038824/1,21038824, 1373.55,PPL PRS Ltd,01703400,,Licences,Events Development,B41TJ000048011,
http://statistics.data.gov.uk/id/local-authority/29UP,Tonbridge & Malling Borough Council,9/20/2023,0021038826/3,21038826, 253.75,KCC - L.A.S.E.R Commercial Services ,00184300,,Electricity,Cemetery,B26MP000021002,
http://statistics.data.gov.uk/id/local-authority/29UP,Tonbridge & Malling Borough Council,9/20/2023,0021038827/3,21038827, 335.24,KCC - L.A.S.E.R Commercial Services ,00184300,,Electricity,Tonbridge Castle Grounds,B22LB000021002,
http://statistics.data.gov.uk/id/local-authority/29UP,Tonbridge & Malling Borough Council,9/20/2023,0021038828/3,21038828, 1998.31,KCC - L.A.S.E.R Commercial Services ,00184300,,Electricity,Haysden Country Park,B22LC000021002,
http://statistics.data.gov.uk/id/local-authority/29UP,Tonbridge & Malling Borough Council,9/20/2023,0021038829/3,21038829, 138.90,KCC - L.A.S.E.R Commercial Services ,00184300,,Electricity,Cemetery,B26MP000021002,
http://statistics.data.gov.uk/id/local-authority/29UP,Tonbridge & Malling Borough Council,9/20/2023,0021038830/3,21038830, 70.50,Initial Washroom Hygiene,00048300,,Cleaning & Domestic Supplies,Haysden Country Park,B22LC000026001,
http://statistics.data.gov.uk/id/local-authority/29UP,Tonbridge & Malling Borough Council,9/20/2023,0021038831/1,21038831, 742.00,Green Leaf Tree & Landscapes Limited,01860500,,Maintenance of Grounds,Open Spaces & Amenity Areas,B22LE000020402,210057317
http://statistics.data.gov.uk/id/local-authority/29UP,Tonbridge & Malling Borough Council,9/20/2023,0021038832/1,21038832, 62.70,Glasdon U.K. Ltd,00039200,,Purchases,Open Spaces & Amenity Areas,B22LE000040101,210057384
http://statistics.data.gov.uk/id/local-authority/29UP,Tonbridge & Malling Borough Council,9/20/2023,0021038832/2,21038832, 12.50,Glasdon U.K. Ltd,00039200,,Purchases,Open Spaces & Amenity Areas,B22LE000040101,210057384
http://statistics.data.gov.uk/id/local-authority/29UP,Tonbridge & Malling Borough Council,9/20/2023,0021038833/3,21038833, 2250.00,G2 Recruitment Solutions,01786000,,Temporary Staff,Planning Sals&Overheads,D01AJDJ0011300,
http://statistics.data.gov.uk/id/local-authority/29UP,Tonbridge & Malling Borough Council,9/20/2023,0021038834/1,21038834, 175.00,Flash Mobile Welding Services Ltd,01189200,,Maintenance of Grounds,Tonbridge Castle Grounds,B22LB000020402,210057390
http://statistics.data.gov.uk/id/local-authority/29UP,Tonbridge & Malling Borough Council,9/20/2023,0021038835/1,21038835, 33.00,Landscape Services Ltd,00057600,,Maintenance of Grounds,Open Spaces & Amenity Areas,B22LE000020402,210057383
http://statistics.data.gov.uk/id/local-authority/29UP,Tonbridge & Malling Borough Council,9/20/2023,0021038836/1,21038836, 129.50,Landscape Services Ltd,00057600,,Maintenance of Grounds,Open Spaces & Amenity Areas,B22LE000020402,210057374
http://statistics.data.gov.uk/id/local-authority/29UP,Tonbridge & Malling Borough Council,9/20/2023,0021038837/1,21038837, 314.86,Landscape Services Ltd,00057600,,Maintenance of Grounds,Sports Grounds,B13ET000020402,210057197
http://statistics.data.gov.uk/id/local-authority/29UP,Tonbridge & Malling Borough Council,9/20/2023,0021038840/1,21038840, 40.00,Weddle and Co,00714900,,Maintenance of Grounds,Open Spaces & Amenity Areas,B22LE000020402,210057382
http://statistics.data.gov.uk/id/local-authority/29UP,Tonbridge & Malling Borough Council,9/20/2023,0021038841/1,21038841, 685.66,Atlas Facilities Managment Limited ,01075900,,Gates / Security,Patrolling,B22LF000044017,210057188
http://statistics.data.gov.uk/id/local-authority/29UP,Tonbridge & Malling Borough Council,9/20/2023,0022028092/1,22028092, 33188.00,Paramount Independent Property Suppliers,01595300,,Temporary Accommodation,Homelessness,C01AA000044051,
http://statistics.data.gov.uk/id/local-authority/29UP,Tonbridge & Malling Borough Council,9/20/2023,0022028093/3,22028093, 392.00,Lucy and Martin Recycling LTD,01694200,,General Maintenance,Dry Recycling,H34SR000020301,
http://statistics.data.gov.uk/id/local-authority/29UP,Tonbridge & Malling Borough Council,9/20/2023,0022028094/3,22028094, 482.20,Lucy and Martin Recycling LTD,01694200,,Vehicle Licences,Dry Recycling,H34SR000030105,
http://statistics.data.gov.uk/id/local-authority/29UP,Tonbridge & Malling Borough Council,9/20/2023,0022028095/1,22028095, 549.00,Town & Country Housing Group,01385400,,Countywide DFG Project,Private Sector Housing Renewal,C03BD000044031,
http://statistics.data.gov.uk/id/local-authority/29UP,Tonbridge & Malling Borough Council,9/20/2023,0022028096/1,22028096, 751.09,Peter Ridley Waste Systems,01750400,,Purchases,Food Recycling,H34SS000040101,220003394
http://statistics.data.gov.uk/id/local-authority/29UP,Tonbridge & Malling Borough Council,9/20/2023,0022028096/2,22028096, 55.00,Peter Ridley Waste Systems,01750400,,Purchases,Food Recycling,H34SS000040101,220003394
http://statistics.data.gov.uk/id/local-authority/29UP,Tonbridge & Malling Borough Council,9/20/2023,0022028097/3,22028097, 16187.00,SPA CAFFE LIMITED,00127100,,Temporary Accommodation,Homelessness,C01AA000044051,
http://statistics.data.gov.uk/id/local-authority/29UP,Tonbridge & Malling Borough Council,9/20/2023,0022028098/1,22028098, 992.83,Town & Country Housing Group,01385400,,Other Expenses,Disabled Facilities Grant Mand,P03AC000009908,
http://statistics.data.gov.uk/id/local-authority/29UP,Tonbridge & Malling Borough Council,9/20/2023,0022028099/1,22028099, 6894.66,Premiere Projects Limited,01913200,,Other Expenses,Disabled Facilities Grant Mand,P03AC000009908,
http://statistics.data.gov.uk/id/local-authority/29UP,Tonbridge & Malling Borough Council,9/20/2023,0022028100/1,22028100, 2366.21,Town & Country Housing Group,01385400,,Other Expenses,Disabled Facilities Grant Mand,P03AC000009908,
http://statistics.data.gov.uk/id/local-authority/29UP,Tonbridge & Malling Borough Council,9/20/2023,0022028101/1,22028101, 14777.80,Acorn Maintenance Services,01036000,,Other Expenses,Disabled Facilities Grant Mand,P03AC000009908,
http://statistics.data.gov.uk/id/local-authority/29UP,Tonbridge & Malling Borough Council,9/20/2023,0022028102/1,22028102, 1519.00,Simply Rented Ltd ,01691400,,Temporary Accommodation,Homelessness,C01AA000044051,
http://statistics.data.gov.uk/id/local-authority/29UP,Tonbridge & Malling Borough Council,9/20/2023,0022028103/1,22028103, 3410.00,Simon Niblett Lettings,00072600,,Temporary Accommodation,Homelessness,C01AA000044051,
http://statistics.data.gov.uk/id/local-authority/29UP,Tonbridge & Malling Borough Council,9/20/2023,0022028104/1,22028104, 9990.00,Simon Niblett Lettings,00072600,,Temporary Accommodation,Homelessness,C01AA000044051,
http://statistics.data.gov.uk/id/local-authority/29UP,Tonbridge & Malling Borough Council,9/20/2023,0022028105/1,22028105, 1612.00,Premier Property Providers,01785400,,Temporary Accommodation,Homelessness,C01AA000044051,
http://statistics.data.gov.uk/id/local-authority/29UP,Tonbridge & Malling Borough Council,9/20/2023,0022028106/1,22028106, 8239.00,Less Homeless Ltd,01489300,,Temporary Accommodation,Homelessness,C01AA000044051,
http://statistics.data.gov.uk/id/local-authority/29UP,Tonbridge & Malling Borough Council,9/20/2023,0022028107/1,22028107, 6122.50,Kent Accommodation Ltd,01722000,,Temporary Accommodation,Homelessness,C01AA000044051,
http://statistics.data.gov.uk/id/local-authority/29UP,Tonbridge & Malling Borough Council,9/20/2023,0022028108/1,22028108, 1116.00,1st  Steps Housing Kent,01716100,,Temporary Accommodation,Homelessness,C01AA000044051,
http://statistics.data.gov.uk/id/local-authority/29UP,Tonbridge & Malling Borough Council,9/20/2023,0022028109/1,22028109, 2015.00,Centennial Property Ltd,01901000,,Temporary Accommodation,Homelessness,C01AA000044051,
http://statistics.data.gov.uk/id/local-authority/29UP,Tonbridge & Malling Borough Council,9/20/2023,0022028110/1,22028110, 26776.00,Social & Community Care,01768400,,Temporary Accommodation,Homelessness,C01AA000044051,
http://statistics.data.gov.uk/id/local-authority/29UP,Tonbridge & Malling Borough Council,9/20/2023,0022028111/1,22028111, 2615.82,The Care Group-Housing & Care Trust,01699600,,Temporary Accommodation,Homelessness,C01AA000044051,
http://statistics.data.gov.uk/id/local-authority/29UP,Tonbridge & Malling Borough Council,9/20/2023,0022028112/1,22028112, 21.66,Amazon EU SARL,01738400,,Health General,Env Hlth & Hsg Sals&Overheads,D01AVDV0744049,
http://statistics.data.gov.uk/id/local-authority/29UP,Tonbridge & Malling Borough Council,9/20/2023,0031019706/1,31019706, 910.80,SKF Contractors Ltd,00092000,621768141,Premises Repairs & Maintenance,Parking On-Street,E10HD000020601,310043115
http://statistics.data.gov.uk/id/local-authority/29UP,Tonbridge & Malling Borough Council,9/20/2023,0031019707/1,31019707, 670.80,DSSL Group Ltd,01839500,,CCTV Monitoring Station,Security Services Management,E09GA000051020,310043036
http://statistics.data.gov.uk/id/local-authority/29UP,Tonbridge & Malling Borough Council,9/20/2023,0031019708/1,31019708, 8.11,B&Q/Screwfix Direct(TradeUKAccount),00141300,,Purchases,Parking Off-Street,E10HA000040101,
http://statistics.data.gov.uk/id/local-authority/29UP,Tonbridge & Malling Borough Council,9/20/2023,0031019709/1,31019709, 81.27,Shell U.K. Oil Products Limited,01673300,,"Petrol, Diesel & Oil",Patrolling,B22LF000030106,
http://statistics.data.gov.uk/id/local-authority/29UP,Tonbridge & Malling Borough Council,9/20/2023,0031019709/2,31019709, 119.64,Shell U.K. Oil Products Limited,01673300,,"Petrol, Diesel & Oil",Parking Off-Street,E10HA000030106,
http://statistics.data.gov.uk/id/local-authority/29UP,Tonbridge & Malling Borough Council,9/20/2023,0031019709/3,31019709, 119.65,Shell U.K. Oil Products Limited,01673300,,"Petrol, Diesel & Oil",Parking On-Street,E10HD000030106,
http://statistics.data.gov.uk/id/local-authority/29UP,Tonbridge & Malling Borough Council,9/20/2023,0032010450/1,32010450, 192.78,KM Media Group Ltd,00053900,,Advertising General,Development Management,A01ABZ99944216,320003543
http://statistics.data.gov.uk/id/local-authority/29UP,Tonbridge & Malling Borough Council,9/20/2023,0032010451/1,32010451, 203.49,KM Media Group Ltd,00053900,,Advertising General,Development Management,A01ABZ99944216,320003541
http://statistics.data.gov.uk/id/local-authority/29UP,Tonbridge & Malling Borough Council,9/20/2023,0032010452/1,32010452, 6806.25,Urban Intelligence Ltd,01816600,,Development of Local Plan,Development of Local Plan,A01AE000044023,320003521
http://statistics.data.gov.uk/id/local-authority/29UP,Tonbridge & Malling Borough Council,9/20/2023,0032010455/1,32010455, 1239.75,Vivid Resourcing,01773700,,Temporary Staff,Planning Sals&Overheads,D01AJDJ0111300,
http://statistics.data.gov.uk/id/local-authority/29UP,Tonbridge & Malling Borough Council,9/20/2023,0032010456/1,32010456, 1741.85,The Oyster Partnership,01196400,,Temporary Staff,Planning Sals&Overheads,D01AJDJ0111300,
http://statistics.data.gov.uk/id/local-authority/29UP,Tonbridge & Malling Borough Council,9/20/2023,0032010457/1,32010457, 1554.00,The Oyster Partnership,01196400,,Temporary Staff,Planning Sals&Overheads,D01AJDJ0111300,
http://statistics.data.gov.uk/id/local-authority/29UP,Tonbridge & Malling Borough Council,9/20/2023,0032010458/1,32010458, 5024.00,Kent Wildlife Trust,01022300,,Temporary Staff,Planning Sals&Overheads,D01AJDJ0311300,320003500
http://statistics.data.gov.uk/id/local-authority/29UP,Tonbridge & Malling Borough Council,9/20/2023,0032010459/3,32010459, 713.28,Hays Specialist Recruitment Limited,01879200,773695871,Temporary Staff,Planning Sals&Overheads,D01AJDJ0111300,
http://statistics.data.gov.uk/id/local-authority/29UP,Tonbridge & Malling Borough Council,9/20/2023,0032010460/3,32010460, 2294.75,Hays Specialist Recruitment Limited,01879200,773695871,Temporary Staff,Planning Sals&Overheads,D01AJDJ0111300,
http://statistics.data.gov.uk/id/local-authority/29UP,Tonbridge & Malling Borough Council,9/20/2023,0032010461/1,32010461, 149.94,KM Media Group Ltd,00053900,,Advertising General,Development Management,A01ABZ99944216,320003544
http://statistics.data.gov.uk/id/local-authority/29UP,Tonbridge & Malling Borough Council,9/20/2023,0032010462/3,32010462, 1811.25,Carrington West Limited,01844500,,Temporary Staff,Planning Sals&Overheads,D01AJDJ0111300,
http://statistics.data.gov.uk/id/local-authority/29UP,Tonbridge & Malling Borough Council,9/20/2023,0032010463/3,32010463, 1914.75,Carrington West Limited,01844500,,Temporary Staff,Planning Sals&Overheads,D01AJDJ0111300,
http://statistics.data.gov.uk/id/local-authority/29UP,Tonbridge & Malling Borough Council,9/20/2023,0032010464/3,32010464, 1656.00,Carrington West Limited,01844500,,Temporary Staff,Planning Sals&Overheads,D01AJDJ0111300,
http://statistics.data.gov.uk/id/local-authority/29UP,Tonbridge & Malling Borough Council,9/20/2023,0032010465/3,32010465, 1504.00,Carrington West Limited,01844500,,Temporary Staff,Planning Sals&Overheads,D01AJDJ0111300,
http://statistics.data.gov.uk/id/local-authority/29UP,Tonbridge & Malling Borough Council,9/20/2023,0032010466/3,32010466, 1863.00,Carrington West Limited,01844500,,Temporary Staff,Planning Sals&Overheads,D01AJDJ0111300,
http://statistics.data.gov.uk/id/local-authority/29UP,Tonbridge & Malling Borough Council,9/20/2023,0041035893/1,41035893, 1110.36,Morgan Hunt UK Ltd,01086900,,Temporary Staff,Finance Sals&Overheads,D01AFDF1111300,
http://statistics.data.gov.uk/id/local-authority/29UP,Tonbridge & Malling Borough Council,9/20/2023,0041035894/1,41035894, 1192.40,Morgan Hunt UK Ltd,01086900,,Temporary Staff,Finance Sals&Overheads,D01AFDF1111300,
http://statistics.data.gov.uk/id/local-authority/29UP,Tonbridge & Malling Borough Council,9/20/2023,0041035896/1,41035896, 2079.94,Rundle & Co Ltd,00087200,,Bailiffs Commission,Local Revenue & NNDR Collect,D41QA000044075,
http://statistics.data.gov.uk/id/local-authority/29UP,Tonbridge & Malling Borough Council,9/20/2023,0041035908/1,41035908, 2.31,WorldPay ,01568000,,Credit Card Commission,Banking Arrangements,D43QK000044082,
http://statistics.data.gov.uk/id/local-authority/29UP,Tonbridge & Malling Borough Council,9/20/2023,0041035909/1,41035909, 5.33,WorldPay ,01568000,,Credit Card Commission,Banking Arrangements,D43QK000044082,
http://statistics.data.gov.uk/id/local-authority/29UP,Tonbridge & Malling Borough Council,9/20/2023,0041035910/1,41035910, 40.84,WorldPay ,01568000,,Credit Card Commission,Banking Arrangements,D43QK000044082,
http://statistics.data.gov.uk/id/local-authority/29UP,Tonbridge & Malling Borough Council,9/20/2023,0041035910/2,41035910, 24.99,WorldPay ,01568000,,Credit Card Commission,Banking Arrangements,D43QK000044082,
http://statistics.data.gov.uk/id/local-authority/29UP,Tonbridge & Malling Borough Council,9/20/2023,0041035911/1,41035911, 44.10,WorldPay ,01568000,,Credit Card Commission,Banking Arrangements,D43QK000044082,
http://statistics.data.gov.uk/id/local-authority/29UP,Tonbridge & Malling Borough Council,9/20/2023,0041035911/2,41035911, 24.99,WorldPay ,01568000,,Credit Card Commission,Banking Arrangements,D43QK000044082,
http://statistics.data.gov.uk/id/local-authority/29UP,Tonbridge & Malling Borough Council,9/20/2023,0051008846/1,51008846, 350.00,Dr Olivia Hum MYLA Health,01916000,,Ext Fees/Prof & Tech,Training,D10DCDV0113561,
http://statistics.data.gov.uk/id/local-authority/29UP,Tonbridge & Malling Borough Council,9/21/2023,0041035912/1,41035912, 20.19,WorldPay Ltd,01402000,991280207,Credit Card Commission,Banking Arrangements,D43QK000044082,
http://statistics.data.gov.uk/id/local-authority/29UP,Tonbridge & Malling Borough Council,9/22/2023,0041035914/1,41035914, 2536.00,H.M. Revenue & Customs,00048400,,Levy Payment,Apprenticeship Scheme,D10DE000013700,
http://statistics.data.gov.uk/id/local-authority/29UP,Tonbridge & Malling Borough Council,9/27/2023,0011046940/1,11046940, 1217.80,Sellick Partnership Group Limited,01336800,,Temporary Staff,Legal Sals&Overheads,D01ARDR0011300,
http://statistics.data.gov.uk/id/local-authority/29UP,Tonbridge & Malling Borough Council,9/27/2023,0011046941/1,11046941, 1204.40,Sellick Partnership Group Limited,01336800,,Temporary Staff,Legal Sals&Overheads,D01ARDR0011300,
http://statistics.data.gov.uk/id/local-authority/29UP,Tonbridge & Malling Borough Council,9/27/2023,0011046942/1,11046942, 589.41,KH Recruitment Ltd,01738900,,Temporary Staff,Personnel Sals&Overheads,D01ABDB0311300,
http://statistics.data.gov.uk/id/local-authority/29UP,Tonbridge & Malling Borough Council,9/27/2023,0011046943/1,11046943, 235.60,Visit England Assessment Services,01230100,,Subscriptions,Tonbridge Castle Gatehouse,B40TG000047002,
http://statistics.data.gov.uk/id/local-authority/29UP,Tonbridge & Malling Borough Council,9/27/2023,0011046944/1,11046944, 1550.43,Papo UK Ltd,01238600,,Purchases,TIC Stock Account,K18AX000001002,
http://statistics.data.gov.uk/id/local-authority/29UP,Tonbridge & Malling Borough Council,9/27/2023,0011046947/1,11046947, 56.26,Royal Mail,00086200,,Postages - Business Reply,Electoral Registration,D31MF000045003,
http://statistics.data.gov.uk/id/local-authority/29UP,Tonbridge & Malling Borough Council,9/27/2023,0011046948/1,11046948, 450.00,BML Building Services Ltd,01505000,,BRREP Response - General,Leis Man Poult Wood Golf Centr,M15HEP50001997,
http://statistics.data.gov.uk/id/local-authority/29UP,Tonbridge & Malling Borough Council,9/27/2023,0011046949/1,11046949, 520.00,G C Industrial Heating Services,00578100,,BRREP Response - General,Tonbridge Castle / CAB,M15KFP50001997,
http://statistics.data.gov.uk/id/local-authority/29UP,Tonbridge & Malling Borough Council,9/27/2023,0011046950/3,11046950, 800.35,Castle Water,01696500,,Water Charges (Metered),Buildings,D21FEDD1024001,
http://statistics.data.gov.uk/id/local-authority/29UP,Tonbridge & Malling Borough Council,9/27/2023,0011046950/4,11046950, 45.00,Castle Water,01696500,,Water Charges (Metered),Buildings,D21FEDD1024001,
http://statistics.data.gov.uk/id/local-authority/29UP,Tonbridge & Malling Borough Council,9/27/2023,0011046951/1,11046951, 269.22,Royal Mail,00086200,,Postages - Business Reply,Electoral Registration,D31MF000045003,
http://statistics.data.gov.uk/id/local-authority/29UP,Tonbridge & Malling Borough Council,9/27/2023,0011046951/2,11046951, 10.00,Royal Mail,00086200,,Purchases,Business Reply Stock Account,K14AT000001002,
http://statistics.data.gov.uk/id/local-authority/29UP,Tonbridge & Malling Borough Council,9/27/2023,0011046952/1,11046952, 1666.16,KCS - KCC,00054200,,Electricity,Buildings,D21FEDD5021002,
http://statistics.data.gov.uk/id/local-authority/29UP,Tonbridge & Malling Borough Council,9/27/2023,0011046953/1,11046953, 905.50,Thomson Snell & Passmore,00101700,,Legal Fees,Legal Sals&Overheads,D01ARDR0044002,
http://statistics.data.gov.uk/id/local-authority/29UP,Tonbridge & Malling Borough Council,9/27/2023,0011046954/1,11046954, 456.50,Thomson Snell & Passmore,00101700,,Legal Fees,Legal Sals&Overheads,D01ARDR0044002,
http://statistics.data.gov.uk/id/local-authority/29UP,Tonbridge & Malling Borough Council,9/27/2023,0011046955/3,11046955, 148.50,Association Democratic Services Officers,01472800,,Professional Membership,Admin & Prop Sals&Overheads,D01AADA0347001,
http://statistics.data.gov.uk/id/local-authority/29UP,Tonbridge & Malling Borough Council,9/27/2023,0011046956/3,11046956, 215.52,Initial Washroom Hygiene,00048300,,Laundry - Roller Towels,Cleaning & Security,D21FD000042003,
http://statistics.data.gov.uk/id/local-authority/29UP,Tonbridge & Malling Borough Council,9/27/2023,0011046957/3,11046957, 4508.62,KCS - KCC,00054200,,Electricity,Buildings,D21FEDD1021002,
http://statistics.data.gov.uk/id/local-authority/29UP,Tonbridge & Malling Borough Council,9/27/2023,0011046958/3,11046958, 870.00,G C Industrial Heating Services,00578100,,BRREP Plant renewals,Tonbridge Swimming Pool,M15HBP20001909,
http://statistics.data.gov.uk/id/local-authority/29UP,Tonbridge & Malling Borough Council,9/27/2023,0011046959/1,11046959, 222.09,EDF Energy Customers plc,01035000,,Estate Management Charge,Land Review,D40PS000020400,
http://statistics.data.gov.uk/id/local-authority/29UP,Tonbridge & Malling Borough Council,9/27/2023,0011046960/3,11046960, 378.51,KCS - KCC,00054200,,Gas,Buildings,D21FEDD1021003,
http://statistics.data.gov.uk/id/local-authority/29UP,Tonbridge & Malling Borough Council,9/27/2023,0011046961/3,11046961, 1561.36,The Oyster Partnership,01196400,,Temporary Staff,Admin & Prop Sals&Overheads,D01AADA1111300,
http://statistics.data.gov.uk/id/local-authority/29UP,Tonbridge & Malling Borough Council,9/27/2023,0011046962/1,11046962, 588.63,Scottish Water Business Stream Ltd,01641100,,Estate Management Charge,Land Review,D40PS000020400,
http://statistics.data.gov.uk/id/local-authority/29UP,Tonbridge & Malling Borough Council,9/27/2023,0011046963/3,11046963, 1453.68,The Oyster Partnership,01196400,,Temporary Staff,Admin & Prop Sals&Overheads,D01AADA1111300,
http://statistics.data.gov.uk/id/local-authority/29UP,Tonbridge & Malling Borough Council,9/27/2023,0011046964/3,11046964, 2756.02,KCS - KCC,00054200,,Electricity,Buildings,D21FEDD6021002,
http://statistics.data.gov.uk/id/local-authority/29UP,Tonbridge & Malling Borough Council,9/27/2023,0011046970/1,11046970, 391.72,Security & Electronic Solutions Ltd,01379500,,BRREP Servicing - CCTV,Angel Centre,M15HAP20001952,110070458
http://statistics.data.gov.uk/id/local-authority/29UP,Tonbridge & Malling Borough Council,9/27/2023,0011046971/1,11046971, 60.00,Willow Pumps Ltd,00114100,,BRREP Servicing - Pumping Stn,Tonbridge Swimming Pool,M15HBP20001931,110069721
http://statistics.data.gov.uk/id/local-authority/29UP,Tonbridge & Malling Borough Council,9/27/2023,0011046971/2,11046971, 120.00,Willow Pumps Ltd,00114100,,BRREP Servicing - Pumping Stn,Ton Sportsgrnd Bldgs / Toilets,M15HCP20001931,110069721
http://statistics.data.gov.uk/id/local-authority/29UP,Tonbridge & Malling Borough Council,9/27/2023,0011046971/3,11046971, 120.00,Willow Pumps Ltd,00114100,,BRREP Servicing - Pumping Stn,Vale Rise Depot,M15LCP20001931,110069721
http://statistics.data.gov.uk/id/local-authority/29UP,Tonbridge & Malling Borough Council,9/27/2023,0011046972/1,11046972, 78.50,Triple S Lift Services,01344900,,BRREP Servicing - lifts,Gibson Building East,M15KGP20001930,110070323
http://statistics.data.gov.uk/id/local-authority/29UP,Tonbridge & Malling Borough Council,9/27/2023,0011046973/1,11046973, 980.00,G C Industrial Heating Services,00578100,,BRREP Response - General,Leis Man Poult Wood Golf Centr,M15HEP50001997,110070447
http://statistics.data.gov.uk/id/local-authority/29UP,Tonbridge & Malling Borough Council,9/27/2023,0011046974/1,11046974, 340.00,G C Industrial Heating Services,00578100,,BRREP Response - General,Leybourne Lakes Country Park,M15HLP50001997,110070438
http://statistics.data.gov.uk/id/local-authority/29UP,Tonbridge & Malling Borough Council,9/27/2023,0011046975/1,11046975, 3060.00,G C Industrial Heating Services,00578100,,BRREP Plant renewals,Tonbridge Swimming Pool,M15HBP20001909,110070434
http://statistics.data.gov.uk/id/local-authority/29UP,Tonbridge & Malling Borough Council,9/27/2023,0011046976/1,11046976, 1930.00,G C Industrial Heating Services,00578100,,BRREP Response - General,Leybourne Lakes Country Park,M15HLP50001997,110070378
http://statistics.data.gov.uk/id/local-authority/29UP,Tonbridge & Malling Borough Council,9/27/2023,0011046977/1,11046977, 2020.00,G C Industrial Heating Services,00578100,,BRREP Response - General,Tonbridge Castle / CAB,M15KFP50001997,110070484
http://statistics.data.gov.uk/id/local-authority/29UP,Tonbridge & Malling Borough Council,9/27/2023,0011046978/1,11046978, 1598.00,BML Building Services Ltd,01505000,,Repairs & Mtce to Buildings,Homelessness,C01AATNHS20101,110070476
http://statistics.data.gov.uk/id/local-authority/29UP,Tonbridge & Malling Borough Council,9/27/2023,0011046979/1,11046979, 346.22,Atlas Facilities Managment Limited ,01075900,,Miscellaneous Services,Cleaning & Security,D21FDDD1044015,110070491
http://statistics.data.gov.uk/id/local-authority/29UP,Tonbridge & Malling Borough Council,9/27/2023,0011046980/1,11046980, 346.22,Atlas Facilities Managment Limited ,01075900,,Miscellaneous Services,Cleaning & Security,D21FDDD5044015,110070489
http://statistics.data.gov.uk/id/local-authority/29UP,Tonbridge & Malling Borough Council,9/27/2023,0011046981/1,11046981, 346.22,Atlas Facilities Managment Limited ,01075900,,Miscellaneous Services,Cleaning & Security,D21FDDD6044015,110070490
http://statistics.data.gov.uk/id/local-authority/29UP,Tonbridge & Malling Borough Council,9/27/2023,0011046982/1,11046982, 1060.00,G C Industrial Heating Services,00578100,,BRREP Servicing - Heating Syst,Angel Centre,M15HAP20001934,110070483
http://statistics.data.gov.uk/id/local-authority/29UP,Tonbridge & Malling Borough Council,9/27/2023,0011046983/1,11046983, 1140.00,G C Industrial Heating Services,00578100,,BRREP Plant renewals,Larkfield Leisure Centre,M15HDP20001909,110070507
http://statistics.data.gov.uk/id/local-authority/29UP,Tonbridge & Malling Borough Council,9/27/2023,0011046984/1,11046984, 1570.00,G C Industrial Heating Services,00578100,,BRREP Response - General,Tonbridge Swimming Pool,M15HBP50001997,110070508
http://statistics.data.gov.uk/id/local-authority/29UP,Tonbridge & Malling Borough Council,9/27/2023,0011046985/1,11046985, 890.00,G C Industrial Heating Services,00578100,,BRREP Response - General,Leis Man Poult Wood Golf Centr,M15HEP50001997,110070506
http://statistics.data.gov.uk/id/local-authority/29UP,Tonbridge & Malling Borough Council,9/27/2023,0011046986/3,11046986, 1204.40,Sellick Partnership Group Limited,01336800,,Temporary Staff,Legal Sals&Overheads,D01ARDR0011300,
http://statistics.data.gov.uk/id/local-authority/29UP,Tonbridge & Malling Borough Council,9/27/2023,0011046987/3,11046987, 1217.80,Sellick Partnership Group Limited,01336800,,Temporary Staff,Legal Sals&Overheads,D01ARDR0011300,
http://statistics.data.gov.uk/id/local-authority/29UP,Tonbridge & Malling Borough Council,9/27/2023,0011046988/3,11046988, 1790.10,TMS Protection Ltd,01744300,,Temporary Staff,Admin & Prop Sals&Overheads,D01AADA0511300,
http://statistics.data.gov.uk/id/local-authority/29UP,Tonbridge & Malling Borough Council,9/27/2023,0011046989/1,11046989, 25.00,Absolute Creative Print,01801100,,Economic Development & Regen,Eco Dev & Reg Gen Bus Support,D52TD000047027,110070480
http://statistics.data.gov.uk/id/local-authority/29UP,Tonbridge & Malling Borough Council,9/27/2023,0011046989/2,11046989, 36.00,Absolute Creative Print,01801100,,Economic Development & Regen,Eco Dev & Reg Gen Bus Support,D52TD000047027,110070480
http://statistics.data.gov.uk/id/local-authority/29UP,Tonbridge & Malling Borough Council,9/27/2023,0012008840/1,12008840, 76.74,Bytes Software Services,01676900,823818226,Software Hire & Support,Information Technology,D27KD000044059,410032469
http://statistics.data.gov.uk/id/local-authority/29UP,Tonbridge & Malling Borough Council,9/27/2023,0012008841/1,12008841, 647.16,NEC Software Solutions UK Ltd,01073900,202159745,Software Hire & Support,Information Technology,D27KD000044059,410032460
http://statistics.data.gov.uk/id/local-authority/29UP,Tonbridge & Malling Borough Council,9/27/2023,0012008841/2,12008841, 906.03,NEC Software Solutions UK Ltd,01073900,202159745,Software Hire & Support,Information Technology,D27KD000044059,410032460
http://statistics.data.gov.uk/id/local-authority/29UP,Tonbridge & Malling Borough Council,9/27/2023,0012008842/1,12008842, 67.99,Perfect Colours,01672500,,Toner Cartridges,Information Technology,D27KD000043018,410032477
http://statistics.data.gov.uk/id/local-authority/29UP,Tonbridge & Malling Borough Council,9/27/2023,0012008842/2,12008842, 67.99,Perfect Colours,01672500,,Toner Cartridges,Information Technology,D27KD000043018,410032477
http://statistics.data.gov.uk/id/local-authority/29UP,Tonbridge & Malling Borough Council,9/27/2023,0012008842/3,12008842, 67.99,Perfect Colours,01672500,,Toner Cartridges,Information Technology,D27KD000043018,410032477
http://statistics.data.gov.uk/id/local-authority/29UP,Tonbridge & Malling Borough Council,9/27/2023,0012008842/4,12008842, 67.99,Perfect Colours,01672500,,Toner Cartridges,Information Technology,D27KD000043018,410032477
http://statistics.data.gov.uk/id/local-authority/29UP,Tonbridge & Malling Borough Council,9/27/2023,0012008842/5,12008842, 67.99,Perfect Colours,01672500,,Toner Cartridges,Information Technology,D27KD000043018,410032477
http://statistics.data.gov.uk/id/local-authority/29UP,Tonbridge & Malling Borough Council,9/27/2023,0012008842/6,12008842, 67.99,Perfect Colours,01672500,,Toner Cartridges,Information Technology,D27KD000043018,410032477
http://statistics.data.gov.uk/id/local-authority/29UP,Tonbridge & Malling Borough Council,9/27/2023,0012008842/7,12008842, 12.00,Perfect Colours,01672500,,Delivery Expenses,Information Technology,D27KD000044069,410032477
http://statistics.data.gov.uk/id/local-authority/29UP,Tonbridge & Malling Borough Council,9/27/2023,0012008843/1,12008843, 191.85,Bytes Software Services,01676900,823818226,Software Hire & Support,Information Technology,D27KD000044059,410032478
http://statistics.data.gov.uk/id/local-authority/29UP,Tonbridge & Malling Borough Council,9/27/2023,0012008844/1,12008844, 5761.00,Loop1 UK Limited,01746700,,Software Hire & Support,Information Technology,D27KD000044059,410032480
http://statistics.data.gov.uk/id/local-authority/29UP,Tonbridge & Malling Borough Council,9/27/2023,0012008845/1,12008845, 67.45,CCS Media Ltd,00018000,,Purchases,Information Technology,D27KD000040101,410032481
http://statistics.data.gov.uk/id/local-authority/29UP,Tonbridge & Malling Borough Council,9/27/2023,0012008845/2,12008845, 3.00,CCS Media Ltd,00018000,,Delivery Expenses,Information Technology,D27KD000044069,410032481
http://statistics.data.gov.uk/id/local-authority/29UP,Tonbridge & Malling Borough Council,9/27/2023,0012008846/1,12008846, 108.99,CCS Media Ltd,00018000,,Health General,Env Hlth & Hsg Sals&Overheads,D01AVDV0944049,410032482
http://statistics.data.gov.uk/id/local-authority/29UP,Tonbridge & Malling Borough Council,9/27/2023,0012008846/2,12008846, 2.00,CCS Media Ltd,00018000,,Health General,Env Hlth & Hsg Sals&Overheads,D01AVDV0944049,410032482
http://statistics.data.gov.uk/id/local-authority/29UP,Tonbridge & Malling Borough Council,9/27/2023,0012008847/1,12008847, 181.98,British Telecommunications Plc,00012800,,Telephones - Rentals,General Admin Telephones,D24GT000045005,
http://statistics.data.gov.uk/id/local-authority/29UP,Tonbridge & Malling Borough Council,9/27/2023,0021038819/1,21038819, 36313.00,Forge Leisure (UK) Ltd,01725500,,Initial Furniture & Equipment,Capital Renewals Leisure,P05KGBC0209906,210057257
http://statistics.data.gov.uk/id/local-authority/29UP,Tonbridge & Malling Borough Council,9/27/2023,0021038825/1,21038825, 46.26,Kompan Ltd,01741600,382219257,Maintenance of Play Equipment,Haysden Country Park,B22LC000020503,210057381
http://statistics.data.gov.uk/id/local-authority/29UP,Tonbridge & Malling Borough Council,9/27/2023,0021038825/2,21038825, 32.00,Kompan Ltd,01741600,382219257,Maintenance of Play Equipment,Haysden Country Park,B22LC000020503,210057381
http://statistics.data.gov.uk/id/local-authority/29UP,Tonbridge & Malling Borough Council,9/27/2023,0021038842/1,21038842, 950.00,Arnold Tarmac Ltd,01685100,619126544,General Maintenance,Dry Recycling,H34SR000020301,220003396
http://statistics.data.gov.uk/id/local-authority/29UP,Tonbridge & Malling Borough Council,9/27/2023,0021038846/1,21038846, 1925.47,Landscape Services Ltd,00057600,,Events Support,Events Development,B41TJ000044041,210057389
http://statistics.data.gov.uk/id/local-authority/29UP,Tonbridge & Malling Borough Council,9/27/2023,0021038847/1,21038847, 652.92,Landscape Services Ltd,00057600,,Maintenance of Grounds,Tonbridge Castle Grounds,B22LB000020402,210057248
http://statistics.data.gov.uk/id/local-authority/29UP,Tonbridge & Malling Borough Council,9/27/2023,0021038848/1,21038848, 6275.00,Cowdrey Cricket Club,00899500,,Maintenance of Grounds,Sports Grounds,B13ET000020402,
http://statistics.data.gov.uk/id/local-authority/29UP,Tonbridge & Malling Borough Council,9/27/2023,0021038849/1,21038849, 125.00,Flash Mobile Welding Services Ltd,01189200,,Maintenance of Grounds,Open Spaces & Amenity Areas,B22LE000020402,210057407
http://statistics.data.gov.uk/id/local-authority/29UP,Tonbridge & Malling Borough Council,9/27/2023,0021038850/1,21038850, 650.00,Green Leaf Tree & Landscapes Limited,01860500,,Health & Safety - Trees,Countryside/Woodland Mgt,B22LG000044045,210057406
http://statistics.data.gov.uk/id/local-authority/29UP,Tonbridge & Malling Borough Council,9/27/2023,0021038852/1,21038852, 37.00,Kent County Council,00167000,,Tonbridge Christmas Lighting,Eco Dev & Reg Ton Chris Light,D52TF000047015,210057367
http://statistics.data.gov.uk/id/local-authority/29UP,Tonbridge & Malling Borough Council,9/27/2023,0021038853/1,21038853, 395.00,Lemon Drainage Services LTD,01761600,,Sewerage Charges,Haysden Country Park,B22LC000024003,210057387
http://statistics.data.gov.uk/id/local-authority/29UP,Tonbridge & Malling Borough Council,9/27/2023,0021038854/1,21038854, 420.00,Verity Rae Martin LTD,01619000,,Partnership Fees,Leisure Planning & Policy,B37SD000044048,210057371
http://statistics.data.gov.uk/id/local-authority/29UP,Tonbridge & Malling Borough Council,9/27/2023,0021038855/1,21038855, 410.00,Weddle and Co,00714900,,Maintenance of Grounds,Open Spaces & Amenity Areas,B22LE000020402,210057394
http://statistics.data.gov.uk/id/local-authority/29UP,Tonbridge & Malling Borough Council,9/27/2023,0021038856/1,21038856, 11.50,South East Water Ltd,01330300,,Purchases,Haysden Country Park,B22LC000040101,210057326
http://statistics.data.gov.uk/id/local-authority/29UP,Tonbridge & Malling Borough Council,9/27/2023,0021038857/3,21038857, 147.41,Tonbridge & Malling Leisure Trust,01469100,,Other Expenses,LLCP Facility Improv,P05FF000009908,
http://statistics.data.gov.uk/id/local-authority/29UP,Tonbridge & Malling Borough Council,9/27/2023,0021038858/3,21038858, 2385.00,Tonbridge & Malling Leisure Trust,01469100,,Initial Furniture & Equipment,Capital Renewals Leisure,P05KGBC0309906,
http://statistics.data.gov.uk/id/local-authority/29UP,Tonbridge & Malling Borough Council,9/27/2023,0021038859/1,21038859, 250.00,Weddle and Co,00714900,,Maintenance of Grounds,Sports Grounds,B13ET000020402,210057391
http://statistics.data.gov.uk/id/local-authority/29UP,Tonbridge & Malling Borough Council,9/27/2023,0021038860/1,21038860, 390.00,David Hodgkinson Photographer,01068900,,Marketing,Events Development,B41TJZ99944215,210057412
http://statistics.data.gov.uk/id/local-authority/29UP,Tonbridge & Malling Borough Council,9/27/2023,0021038862/1,21038862, 1672.56,Technogym UK Ltd,00900000,,General,Angel Centre,B01AA000054012,
http://statistics.data.gov.uk/id/local-authority/29UP,Tonbridge & Malling Borough Council,9/27/2023,0021038863/1,21038863, 200.00,Cameron Electrical,01849600,,Maintenance of Play Equipment,Open Spaces & Amenity Areas,B22LE000020503,210057322
http://statistics.data.gov.uk/id/local-authority/29UP,Tonbridge & Malling Borough Council,9/27/2023,0021038864/1,21038864, 935.00,Cameron Electrical,01849600,,Maintenance of Play Equipment,Open Spaces & Amenity Areas,B22LE000020503,210057339
http://statistics.data.gov.uk/id/local-authority/29UP,Tonbridge & Malling Borough Council,9/27/2023,0022028113/1,22028113, 14.98,Amazon EU SARL,01738400,,Stationery,Technical Sals&Overheads,D01AE000043003,
http://statistics.data.gov.uk/id/local-authority/29UP,Tonbridge & Malling Borough Council,9/27/2023,0022028114/7,22028114, 68.54,British Telecommunications Plc,00012800,,Purchases,Homelessness,C01AATNPR40101,
http://statistics.data.gov.uk/id/local-authority/29UP,Tonbridge & Malling Borough Council,9/27/2023,0022028115/1,22028115, 173.52,Town & Country Housing Group,01385400,,Other Expenses,Disabled Facilities Grant Mand,P03AC000009908,
http://statistics.data.gov.uk/id/local-authority/29UP,Tonbridge & Malling Borough Council,9/27/2023,0022028116/1,22028116, 1690.80,Premiere Projects Limited,01913200,,Other Expenses,Disabled Facilities Grant Mand,P03AC000009908,
http://statistics.data.gov.uk/id/local-authority/29UP,Tonbridge & Malling Borough Council,9/27/2023,0022028117/1,22028117, 2604.78,Town & Country Housing Group,01385400,,Other Expenses,Disabled Facilities Grant Mand,P03AC000009908,
http://statistics.data.gov.uk/id/local-authority/29UP,Tonbridge & Malling Borough Council,9/27/2023,0022028118/1,22028118, 750.00,Town & Country Housing Group,01385400,,Other Expenses,Housing Assistance,P03AD000009908,
http://statistics.data.gov.uk/id/local-authority/29UP,Tonbridge & Malling Borough Council,9/27/2023,0022028119/1,22028119, 510.00,Town & Country Housing Group,01385400,,Other Expenses,Housing Assistance,P03AD000009908,
http://statistics.data.gov.uk/id/local-authority/29UP,Tonbridge & Malling Borough Council,9/27/2023,0022028120/1,22028120, 510.00,Town & Country Housing Group,01385400,,Other Expenses,Housing Assistance,P03AD000009908,
http://statistics.data.gov.uk/id/local-authority/29UP,Tonbridge & Malling Borough Council,9/27/2023,0022028121/1,22028121, 440.00,Craemer UK LTD,01616400,,Purchases,Refuse Collection,H20SA000040101,220003395
http://statistics.data.gov.uk/id/local-authority/29UP,Tonbridge & Malling Borough Council,9/27/2023,0022028121/2,22028121, 55.00,Craemer UK LTD,01616400,,Purchases,Refuse Collection,H20SA000040101,220003395
http://statistics.data.gov.uk/id/local-authority/29UP,Tonbridge & Malling Borough Council,9/27/2023,0022028123/1,22028123, 6540.00,House to Home Lettings Ltd ,01647600,,Temporary Accommodation,Homelessness,C01AA000044051,
http://statistics.data.gov.uk/id/local-authority/29UP,Tonbridge & Malling Borough Council,9/27/2023,0022028124/1,22028124, 2914.00,Centennial Property Ltd,01901000,,Temporary Accommodation,Homelessness,C01AA000044051,
http://statistics.data.gov.uk/id/local-authority/29UP,Tonbridge & Malling Borough Council,9/27/2023,0022028125/1,22028125, 19.99,KCS Education/CSG Global Education Ltd,01897200,408845925,Purchases,Env Hlth & Hsg Sals&Overheads,D01AVDV0240101,220003397
http://statistics.data.gov.uk/id/local-authority/29UP,Tonbridge & Malling Borough Council,9/27/2023,0022028125/2,22028125, 2.92,KCS Education/CSG Global Education Ltd,01897200,408845925,Purchases,Env Hlth & Hsg Sals&Overheads,D01AVDV0240101,220003397
http://statistics.data.gov.uk/id/local-authority/29UP,Tonbridge & Malling Borough Council,9/27/2023,0022028126/1,22028126, 1088.29,Maidstone Borough Council,01173700,,Council Tax,Homelessness,C01AAMAUN23002,
http://statistics.data.gov.uk/id/local-authority/29UP,Tonbridge & Malling Borough Council,9/27/2023,0022028127/1,22028127, 1000.00,Tunbridge Wells Borough Council,00844600,,Initial Furniture & Equipment,Air Quality Monitoring Station,P02EN000009906,
http://statistics.data.gov.uk/id/local-authority/29UP,Tonbridge & Malling Borough Council,9/27/2023,0022028128/1,22028128, 27.40,Maidstone Borough Council,01173700,,Council Tax,Homelessness,C01AA000023002,
http://statistics.data.gov.uk/id/local-authority/29UP,Tonbridge & Malling Borough Council,9/27/2023,0022028129/3,22028129, 145.48,British Gas Services LTD,01260000,,Electricity,Homelessness,C01AAMAUN21002,
http://statistics.data.gov.uk/id/local-authority/29UP,Tonbridge & Malling Borough Council,9/27/2023,0022028130/1,22028130, 1230.80,Town & Country Housing Group,01385400,,Other Expenses,Disabled Facilities Grant Mand,P03AC000009908,
http://statistics.data.gov.uk/id/local-authority/29UP,Tonbridge & Malling Borough Council,9/27/2023,0022028131/1,22028131, 6834.30,Acorn Maintenance Services,01036000,,Other Expenses,Disabled Facilities Grant Mand,P03AC000009908,
http://statistics.data.gov.uk/id/local-authority/29UP,Tonbridge & Malling Borough Council,9/27/2023,0022028132/1,22028132, 11.50,South East Water Ltd,01330300,,Purchases,Haysden Country Park,B22LC000040101,210057192
http://statistics.data.gov.uk/id/local-authority/29UP,Tonbridge & Malling Borough Council,9/27/2023,0031019711/1,31019711, 3040.00,Arnold Tarmac Ltd,01685100,619126544,Other Expenses,Car Park Imp Rolling Programme,P01AB000009908,310043098
http://statistics.data.gov.uk/id/local-authority/29UP,Tonbridge & Malling Borough Council,9/27/2023,0031019712/4,31019712, 638.92,CDER Group,01773300,,Adjudication & Enforcement Ser,Parking Off-Street,E10HA000044230,
http://statistics.data.gov.uk/id/local-authority/29UP,Tonbridge & Malling Borough Council,9/27/2023,0031019713/1,31019713, 670.80,DSSL Group Ltd,01839500,,CCTV Monitoring Station,Security Services Management,E09GA000051020,310043036
http://statistics.data.gov.uk/id/local-authority/29UP,Tonbridge & Malling Borough Council,9/27/2023,0031019714/1,31019714, 33.00,Flowbird Smart City UK Limited,00898700,,Maintenance - General,Parking Off-Street,E10HA000040135,310043074
http://statistics.data.gov.uk/id/local-authority/29UP,Tonbridge & Malling Borough Council,9/27/2023,0031019714/2,31019714, 132.00,Flowbird Smart City UK Limited,00898700,,Maintenance - General,Parking Off-Street,E10HA000040135,310043074
http://statistics.data.gov.uk/id/local-authority/29UP,Tonbridge & Malling Borough Council,9/27/2023,0031019714/3,31019714, 88.00,Flowbird Smart City UK Limited,00898700,,Maintenance - General,Parking On-Street,E10HD000040135,310043074
http://statistics.data.gov.uk/id/local-authority/29UP,Tonbridge & Malling Borough Council,9/27/2023,0031019714/4,31019714, 22.00,Flowbird Smart City UK Limited,00898700,,Maintenance - General,Parking On-Street,E10HD000040135,310043074
http://statistics.data.gov.uk/id/local-authority/29UP,Tonbridge & Malling Borough Council,9/27/2023,0031019715/1,31019715, 17.99,KCS Education/CSG Global Education Ltd,01897200,408845925,Stationery,Technical Sals&Overheads,D01AE000043003,310043135
http://statistics.data.gov.uk/id/local-authority/29UP,Tonbridge & Malling Borough Council,9/27/2023,0031019715/2,31019715, 23.99,KCS Education/CSG Global Education Ltd,01897200,408845925,Stationery,Technical Sals&Overheads,D01AE000043003,310043135
http://statistics.data.gov.uk/id/local-authority/29UP,Tonbridge & Malling Borough Council,9/27/2023,0031019715/3,31019715, 43.99,KCS Education/CSG Global Education Ltd,01897200,408845925,Stationery,Technical Sals&Overheads,D01AE000043003,310043135
http://statistics.data.gov.uk/id/local-authority/29UP,Tonbridge & Malling Borough Council,9/27/2023,0031019716/1,31019716, 1160.11,Kent Resilience Forum/KMTFA,01571100,,Kent Resilience Forum,Civil Contingencies,D33NA000048032,310043138
http://statistics.data.gov.uk/id/local-authority/29UP,Tonbridge & Malling Borough Council,9/27/2023,0031019717/3,31019717, 244.01,Npower Ltd,01675800,,Electricity,Parking Off-Street,E10HA000021002,
http://statistics.data.gov.uk/id/local-authority/29UP,Tonbridge & Malling Borough Council,9/27/2023,0031019718/3,31019718, 83.05,Npower Ltd,01675800,,Electricity,Parking Off-Street,E10HA000021002,
http://statistics.data.gov.uk/id/local-authority/29UP,Tonbridge & Malling Borough Council,9/27/2023,0031019719/3,31019719, 54.55,Npower Ltd,01675800,,Electricity,Parking Off-Street,E10HA000021002,
http://statistics.data.gov.uk/id/local-authority/29UP,Tonbridge & Malling Borough Council,9/27/2023,0031019720/1,31019720, 430.00,PSR Lighting & Signs Ltd,01265400,986561173,Maintenance of Grounds,Sports Grounds,B13ET000020402,310043045
http://statistics.data.gov.uk/id/local-authority/29UP,Tonbridge & Malling Borough Council,9/27/2023,0031019721/1,31019721, 1131.68,Royal British Legion Industries Ltd,00139700,,Premises Repairs & Maintenance,Parking On-Street,E10HD000020601,310043118
http://statistics.data.gov.uk/id/local-authority/29UP,Tonbridge & Malling Borough Council,9/27/2023,0031019722/1,31019722, 220.00,SKF Contractors Ltd,00092000,621768141,Premises Repairs & Maintenance,Parking On-Street,E10HD000020601,310043140
http://statistics.data.gov.uk/id/local-authority/29UP,Tonbridge & Malling Borough Council,9/27/2023,0031019723/1,31019723, 4651.79,SKF Contractors Ltd,00092000,621768141,Premises Repairs & Maintenance,Parking On-Street,E10HD000020601,310043114
http://statistics.data.gov.uk/id/local-authority/29UP,Tonbridge & Malling Borough Council,9/27/2023,0031019731/1,31019731, 3750.00,Roads & Sewers for Planning & Design Ltd,01847900,,Professional Fees,Boro Drainage & Land Drainage,E20MA000044001,310042986
http://statistics.data.gov.uk/id/local-authority/29UP,Tonbridge & Malling Borough Council,9/27/2023,0031019732/3,31019732, 7.49,B&Q/Screwfix Direct(TradeUKAccount),00141300,,Purchases,Parking Off-Street,E10HA000040101,
http://statistics.data.gov.uk/id/local-authority/29UP,Tonbridge & Malling Borough Council,9/27/2023,0031019733/1,31019733, 285.60,KM Media Group Ltd,00053900,,Advertising General,Parking On-Street,E10HDZ99944216,310043132
http://statistics.data.gov.uk/id/local-authority/29UP,Tonbridge & Malling Borough Council,9/27/2023,0031019734/1,31019734, 37.50,Kings Hill Garage Ltd,01546300,,Transport Repair & Maintenance,Parking Off-Street,E10HA000030103,
http://statistics.data.gov.uk/id/local-authority/29UP,Tonbridge & Malling Borough Council,9/27/2023,0031019734/2,31019734, 37.50,Kings Hill Garage Ltd,01546300,,Transport Repair & Maintenance,Parking On-Street,E10HD000030103,
http://statistics.data.gov.uk/id/local-authority/29UP,Tonbridge & Malling Borough Council,9/27/2023,0031019735/1,31019735, 1420.00,Archway Highway Services Ltd,01398000,,Premises Repairs & Maintenance,Parking On-Street,E10HD000020601,310043129
http://statistics.data.gov.uk/id/local-authority/29UP,Tonbridge & Malling Borough Council,9/27/2023,0032010467/1,32010467, 6181.00,AECOM Limited,01918200,,Development of Local Plan,Development of Local Plan,A01AE000044023,320003514
http://statistics.data.gov.uk/id/local-authority/29UP,Tonbridge & Malling Borough Council,9/27/2023,0032010469/1,32010469, 484.80,G2 Recruitment Solutions,01786000,,Temporary Staff,Planning Sals&Overheads,D01AJDJ0011300,
http://statistics.data.gov.uk/id/local-authority/29UP,Tonbridge & Malling Borough Council,9/27/2023,0032010470/1,32010470, 2250.00,G2 Recruitment Solutions,01786000,,Temporary Staff,Planning Sals&Overheads,D01AJDJ0011300,
http://statistics.data.gov.uk/id/local-authority/29UP,Tonbridge & Malling Borough Council,9/27/2023,0032010471/1,32010471, 2261.25,Hays Specialist Recruitment Limited,01879200,773695871,Temporary Staff,Planning Sals&Overheads,D01AJDJ0111300,
http://statistics.data.gov.uk/id/local-authority/29UP,Tonbridge & Malling Borough Council,9/27/2023,0032010473/3,32010473, 3049.50,Vivid Resourcing,01773700,,Temporary Staff,Planning Sals&Overheads,D01AJDJ0111300,
http://statistics.data.gov.uk/id/local-authority/29UP,Tonbridge & Malling Borough Council,9/27/2023,0032010474/3,32010474, 1305.60,The Oyster Partnership,01196400,,Temporary Staff,Planning Sals&Overheads,D01AJDJ0111300,
http://statistics.data.gov.uk/id/local-authority/29UP,Tonbridge & Malling Borough Council,9/27/2023,0032010475/3,32010475, 1727.60,The Oyster Partnership,01196400,,Temporary Staff,Planning Sals&Overheads,D01AJDJ0111300,
http://statistics.data.gov.uk/id/local-authority/29UP,Tonbridge & Malling Borough Council,9/27/2023,0032010476/3,32010476, 2587.50,Tetlow King Planning Ltd,01290900,,Application & Appeals,Development Management,A01AB000044194,
http://statistics.data.gov.uk/id/local-authority/29UP,Tonbridge & Malling Borough Council,9/27/2023,0032010477/1,32010477, 117.81,KM Media Group Ltd,00053900,,Advertising General,Development Management,A01ABZ99944216,320003545
http://statistics.data.gov.uk/id/local-authority/29UP,Tonbridge & Malling Borough Council,9/27/2023,0032010478/1,32010478, 160.65,KM Media Group Ltd,00053900,,Advertising General,Development Management,A01ABZ99944216,320003553
http://statistics.data.gov.uk/id/local-authority/29UP,Tonbridge & Malling Borough Council,9/27/2023,0041035921/1,41035921, 80.00,WorldPay Ltd,01402000,991280207,Credit Card Commission,Banking Arrangements,D43QK000044082,
http://statistics.data.gov.uk/id/local-authority/29UP,Tonbridge & Malling Borough Council,9/27/2023,0041035921/2,41035921, 61.68,WorldPay Ltd,01402000,991280207,Credit Card Commission,Banking Arrangements,D43QK000044082,
http://statistics.data.gov.uk/id/local-authority/29UP,Tonbridge & Malling Borough Council,9/27/2023,0041035921/3,41035921, 0.32,WorldPay Ltd,01402000,991280207,Credit Card Commission,Banking Arrangements,D43QK000044082,
http://statistics.data.gov.uk/id/local-authority/29UP,Tonbridge & Malling Borough Council,9/27/2023,0041035922/1,41035922, 80.00,WorldPay Ltd,01402000,991280207,Credit Card Commission,Banking Arrangements,D43QK000044082,
http://statistics.data.gov.uk/id/local-authority/29UP,Tonbridge & Malling Borough Council,9/27/2023,0041035922/2,41035922, 78.16,WorldPay Ltd,01402000,991280207,Credit Card Commission,Banking Arrangements,D43QK000044082,
http://statistics.data.gov.uk/id/local-authority/29UP,Tonbridge & Malling Borough Council,9/27/2023,0041035922/3,41035922, 0.16,WorldPay Ltd,01402000,991280207,Credit Card Commission,Banking Arrangements,D43QK000044082,
http://statistics.data.gov.uk/id/local-authority/29UP,Tonbridge & Malling Borough Council,9/27/2023,0041035923/1,41035923, 80.00,WorldPay Ltd,01402000,991280207,Credit Card Commission,Banking Arrangements,D43QK000044082,
http://statistics.data.gov.uk/id/local-authority/29UP,Tonbridge & Malling Borough Council,9/27/2023,0041035923/2,41035923, 176.80,WorldPay Ltd,01402000,991280207,Credit Card Commission,Banking Arrangements,D43QK000044082,
http://statistics.data.gov.uk/id/local-authority/29UP,Tonbridge & Malling Borough Council,9/27/2023,0041035923/3,41035923, 0.16,WorldPay Ltd,01402000,991280207,Credit Card Commission,Banking Arrangements,D43QK000044082,
http://statistics.data.gov.uk/id/local-authority/29UP,Tonbridge & Malling Borough Council,9/27/2023,0041035924/3,41035924, 784.10,CIPFA Business Limited,01216800,,Ext Fees/General,Training,D10DCDF0213567,
http://statistics.data.gov.uk/id/local-authority/29UP,Tonbridge & Malling Borough Council,9/27/2023,0041035925/1,41035925, 171.88,Electrosonic Ltd,00031100,,Leasing Charges,Tonbridge Castle Gatehouse,B40TG000044038,410032419
http://statistics.data.gov.uk/id/local-authority/29UP,Tonbridge & Malling Borough Council,9/27/2023,0041035925/2,41035925, 2426.60,Electrosonic Ltd,00031100,,Leasing Charges,Tonbridge Castle Gatehouse,B40TG000044038,410032419
http://statistics.data.gov.uk/id/local-authority/29UP,Tonbridge & Malling Borough Council,9/27/2023,0041035925/3,41035925, 214.06,Electrosonic Ltd,00031100,,Leasing Charges,Tonbridge Castle Gatehouse,B40TG000044038,410032419
http://statistics.data.gov.uk/id/local-authority/29UP,Tonbridge & Malling Borough Council,9/27/2023,0041035925/4,41035925, 1398.26,Electrosonic Ltd,00031100,,Leasing Charges,Tonbridge Castle Gatehouse,B40TG000044038,410032419
http://statistics.data.gov.uk/id/local-authority/29UP,Tonbridge & Malling Borough Council,9/27/2023,0041035926/1,41035926, 1102.97,Morgan Hunt UK Ltd,01086900,,Temporary Staff,Finance Sals&Overheads,D01AFDF1111300,
http://statistics.data.gov.uk/id/local-authority/29UP,Tonbridge & Malling Borough Council,9/27/2023,0051008847/1,51008847, 18.00,Commercial Services Kent Ltd,01655800,,Criminal Records Bureau Checks,Recruitment Expenses,D10DA000013180,510010649
http://statistics.data.gov.uk/id/local-authority/29UP,Tonbridge & Malling Borough Council,9/27/2023,0051008847/2,51008847, 7.50,Commercial Services Kent Ltd,01655800,,Criminal Records Bureau Checks,Recruitment Expenses,D10DA000013180,510010649
http://statistics.data.gov.uk/id/local-authority/29UP,Tonbridge & Malling Borough Council,9/27/2023,0051008850/1,51008850, 300.00,Zoo and Wildlife Solutions,01916900,,Ext Fees/Prof & Tech,Training,D10DCDR0413561,510010651
